Workbook

Sheet Katalogdaten
B4: Input box LOG nominal value | D4: 30 | E4: 60 | F4: 80 | G4: 99 | J4: Values count for chosen LOG version in first column
B5: Description | D5: =VLOOKUP(D6,Technische_Daten!10:89,8,FALSE) -> LOG 30,0-M16x1-M5 | E5: =VLOOKUP(E6,Technische_Daten!10:89,8,FALSE) -> LOG 60,0-M16x1-M5 | F5: =VLOOKUP(F6,Technische_Daten!10:89,8,FALSE) -> LOG 80,0-M20x1,5-G1/8 | G5: =VLOOKUP(G6,Technische_Daten!10:89,8,FALSE) -> LOG 99,0-M20x1,5-G1/8
B6: Ident.-no. | D6: =CONCATENATE("03989",D4) -> 0398930 | E6: =CONCATENATE("03989",E4) -> 0398960 | F6: =CONCATENATE("03989",F4) -> 0398980 | G6: 0398999
B7: Gripper-Ø D +/- 0.1 | C7: [mm] | D7: =VLOOKUP(D6,Technische_Daten!10:89,4,FALSE) -> 29.7 | E7: =VLOOKUP(E6,Technische_Daten!10:89,4,FALSE) -> 59.4 | F7: =VLOOKUP(F6,Technische_Daten!10:89,4,FALSE) -> 79.2 | G7: =VLOOKUP(G6,Technische_Daten!10:89,4,FALSE) -> 98.01
B8: Height H | C8: [mm] | D8: =VLOOKUP(D6,Technische_Daten!10:89,5,FALSE) -> 43.5 | E8: =VLOOKUP(E6,Technische_Daten!10:89,5,FALSE) -> 70.5 | F8: =VLOOKUP(F6,Technische_Daten!10:89,5,FALSE) -> 94 | G8: =VLOOKUP(G6,Technische_Daten!10:89,5,FALSE) -> 116.325
B9: Mounting thread A | C9: [] | D9: =VLOOKUP(D6,Technische_Daten!10:89,6,FALSE) -> M16x1 | E9: =VLOOKUP(E6,Technische_Daten!10:89,6,FALSE) -> M16x1 | F9: =VLOOKUP(F6,Technische_Daten!10:89,6,FALSE) -> M20x1,5 | G9: =VLOOKUP(G6,Technische_Daten!10:89,6,FALSE) -> M20x1,5
B10: Air connection thread B | C10: [] | D10: =VLOOKUP(D6,Technische_Daten!10:89,7,FALSE) -> M5 | E10: =VLOOKUP(E6,Technische_Daten!10:89,7,FALSE) -> M5 | F10: =VLOOKUP(F6,Technische_Daten!10:89,7,FALSE) -> G1/8 | G10: =VLOOKUP(G6,Technische_Daten!10:89,7,FALSE) -> G1/8
B11: Workpiece-Ø D min * | C11: [mm] | D11: =VLOOKUP(D6,Technische_Daten!10:89,20,FALSE) -> 30 | E11: =VLOOKUP(E6,Technische_Daten!10:89,20,FALSE) -> 60 | F11: =VLOOKUP(F6,Technische_Daten!10:89,20,FALSE) -> 80 | G11: =VLOOKUP(G6,Technische_Daten!10:89,20,FALSE) -> 99
B12: Workpiece-Ø D max | C12: [mm] | D12: =VLOOKUP(D6,Technische_Daten!10:89,21,FALSE) -> 31.7875 | E12: =VLOOKUP(E6,Technische_Daten!10:89,21,FALSE) -> 66.12857143 | F12: =VLOOKUP(F6,Technische_Daten!10:89,21,FALSE) -> 88.7 | G12: =VLOOKUP(G6,Technische_Daten!10:89,21,FALSE) -> 110.7
B13: Opening force Ø D min ** | C13: [N] | D13: =VLOOKUP(D6,Technische_Daten!10:89,22,FALSE) -> 136.8627451 | E13: =VLOOKUP(E6,Technische_Daten!10:89,22,FALSE) -> 596.6904762 | F13: =VLOOKUP(F6,Technische_Daten!10:89,22,FALSE) -> 972.7333333 | G13: =VLOOKUP(G6,Technische_Daten!10:89,22,FALSE) -> 2516.666667
B14: Opening force Ø D max ** | C14: [N] | D14: =VLOOKUP(D6,Technische_Daten!10:89,23,FALSE) -> 40 | E14: =VLOOKUP(E6,Technische_Daten!10:89,23,FALSE) -> 190.4761905 | F14: =VLOOKUP(F6,Technische_Daten!10:89,23,FALSE) -> 433.3333333 | G14: =VLOOKUP(G6,Technische_Daten!10:89,23,FALSE) -> 1166.666667
B15: Weight | C15: [kg] | D15: =VLOOKUP(D6,Technische_Daten!10:89,11,FALSE) -> 0.02 | E15: =VLOOKUP(E6,Technische_Daten!10:89,11,FALSE) -> 0.1084285714 | F15: =VLOOKUP(F6,Technische_Daten!10:89,11,FALSE) -> 0.238 | G15: =VLOOKUP(G6,Technische_Daten!10:89,11,FALSE) -> 0.44
B16: Recommended workpiece weight | C16: [kg] | D16: =VLOOKUP(D6,Technische_Daten!10:89,12,FALSE) -> 0.6975675081 | E16: =VLOOKUP(E6,Technische_Daten!10:89,12,FALSE) -> 3.041235862 | F16: =VLOOKUP(F6,Technische_Daten!10:89,12,FALSE) -> 4.957866123 | G16: =VLOOKUP(G6,Technische_Daten!10:89,12,FALSE) -> 12.82704723
B17: Air consumption per double stroke | C17: [cm3] | D17: =VLOOKUP(D6,Technische_Daten!10:89,14,FALSE) -> 8.6 | E17: =VLOOKUP(E6,Technische_Daten!10:89,14,FALSE) -> 28.82357143 | F17: =VLOOKUP(F6,Technische_Daten!10:89,14,FALSE) -> 65.3397 | G17: =VLOOKUP(G6,Technische_Daten!10:89,14,FALSE) -> 122.799
B18: Max. operating pressure ** | C18: [bar] | D18: =VLOOKUP(D6,Technische_Daten!10:89,15,FALSE) -> 6 | E18: =VLOOKUP(E6,Technische_Daten!10:89,15,FALSE) -> 6 | F18: =VLOOKUP(F6,Technische_Daten!10:89,15,FALSE) -> 6 | G18: =VLOOKUP(G6,Technische_Daten!10:89,15,FALSE) -> 6
B19: Nominal operating pressure | C19: [bar] | D19: =VLOOKUP(D6,Technische_Daten!10:89,16,FALSE) -> 6 | E19: =VLOOKUP(E6,Technische_Daten!10:89,16,FALSE) -> 6 | F19: =VLOOKUP(F6,Technische_Daten!10:89,16,FALSE) -> 6 | G19: =VLOOKUP(G6,Technische_Daten!10:89,16,FALSE) -> 6
B20: Closing / opening time | C20: [s] | D20: =VLOOKUP(D6,Technische_Daten!10:89,18,FALSE) -> 0,06/0,06 | E20: =VLOOKUP(E6,Technische_Daten!10:89,18,FALSE) -> 0,14/0,14 | F20: =VLOOKUP(F6,Technische_Daten!10:89,18,FALSE) -> 0,22/0,22 | G20: =VLOOKUP(G6,Technische_Daten!10:89,18,FALSE) -> 0,44/0,44
B21: Min./max. ambient temperature | C21: [°C] | D21: =VLOOKUP(D6,Technische_Daten!10:89,19,FALSE) -> -40/80 | E21: =VLOOKUP(E6,Technische_Daten!10:89,19,FALSE) -> -40/80 | F21: =VLOOKUP(F6,Technische_Daten!10:89,19,FALSE) -> -40/80 | G21: =VLOOKUP(G6,Technische_Daten!10:89,19,FALSE) -> -40/80
B22: Housing material | C22: [] | D22: PA12 | E22: PA12 | F22: PA12 | G22: PA12
B23: IP class | C23: [] | D23: 27 | E23: 27 | F23: 27 | G23: 27
J25: Auslegungshilfe für LOG
B26: * Note reference creep | J26: m | K26: =(D14-D13)/(D12-D11) -> -54.18894831 | L26: Steigung
B27: ** The gripping force can be set directly by the operating pressure. At a lower pressure than the nominal working pressure the full stroke cannot be achieved . | J27: x | K27: 31 | L27: Workpiece-Ø | M27: =CONCATENATE("permitted values: Ø",ROUND(D11,2)," bis Ø",ROUND(D12,2)) -> permitted values: Ø30 bis Ø31,79
J28: b | K28: =D14-K26*D12 -> 1762.531194 | L28: Y-Achsenschnitt
B29: The LOG hole gripper may not be actuated with compressed air over time (> 1 hour). (eg. machine breakdown or overnight). | J29: y | K29: =K26*K27+K28 -> 82.67379679 | L29: calculate opening force at given Ø
B30: In addition, idle strokes should be avoided (Opening of the gripper without workpiece). | J30: µ | K30: 0.1 | L30: Input adhesion factor
J31: S | K31: 2 | L31: Input safety
J32: g | K32: 9.81 | L32: Input acceleration
J34: m | K34: =K29*K30/(K32*K31) -> 0.4213751111 | L34: calculated workpiece weight at given Ø

Sheet Technische_Daten (hidden)
L4: PA2200/Alu (0,15)
K5: ermittelter Reibwert | L5: 0.15
A7: PIM | D7: PIM | E7: PIM | F7: PIM | G7: PIM | H7: PIM | K7: PIM | L7: PIM | N7: PIM | O7: PIM | P7: PIM | R7: PIM | S7: PIM | T7: PIM | U7: PIM | V7: PIM | W7: PIM
A8: 1 | B8: 2 | C8: 3 | D8: 4 | E8: 5 | F8: 6 | G8: 7 | H8: 8 | I8: 9 | J8: 10 | K8: 11 | L8: 12 | M8: 13 | N8: 14 | O8: 15 | P8: 16 | Q8: 17 | R8: 18 | S8: 19 | T8: 20 | U8: 21 | V8: 22 | W8: 23
A9: Ident- nummer | B9: NennØ | C9: Art | D9: ØD | E9: H | F9: A | G9: B | H9: Bezeichnung | I9: Eigen- masse aus Pro/E [kg] | J9: Eigen- masse gemessen [kg] | K9: Eigen- masse angegeben [kg] | L9: empfohlenes Werkstück- gewicht berechnet [kg] | M9: Fluidverbrauch pro Doppelhub (Volumen Pro/E) [cm^3] | N9: Fluidverbrauch pro Doppelhub angegeben [cm^3] | O9: max Betriebsdruck [bar] | P9: Nenn-betriebsdruck [bar] | Q9: Schließ-/ Öffnungszeit gemessen [s] | R9: Schließ-/ Öffnungszeit angegeben [s] | S9: min/max Umgebungs- temperatur [°C] | T9: dmin (6 bar) | U9: dmax Katalog angegeben (6 bar) | V9: F(dmin) berechnete Greifkraft 6 bar | W9: F(dmax) berechnete Greifkraft 6 bar
A10: 0398920 | B10: 20 | C10: Schnappscheibe | D10: =0.99*B10 -> 19.8 | E10: 29 | F10: =IF(AND(B10<=25,B10>=20),"M14x1,5",IF(B10<=63,"M16x1",IF(B10<=99,"M20x1,5","???"))) -> M14x1,5 | G10: M5 | H10: =CONCATENATE("LOG ",FIXED(Tabelle1[[#This Row],[NennØ]],1),"-",Tabelle1[[#This Row],[A]],"-",Tabelle1[[#This Row],[B]]) -> LOG 20,0-M14x1,5-M5 | I10: 0.00778444684 | J10: 0.008 | K10: =Tabelle1[[#This Row],[Eigen- masse gemessen '[kg']]] -> 0.008 | L10: =0.1*Tabelle1[[#This Row],[F(dmin) berechnete Greifkraft 6 bar]]/9.81/2 -> 0.5466211237 | M10: 2.35 | N10: =Tabelle1[[#This Row],[Fluidverbrauch pro Doppelhub (Volumen Pro/E) '[cm^3']]] -> 2.35 | O10: 6 | P10: 6 | Q10: 0,05/0,05 | R10: =Tabelle1[[#This Row],[Schließ-/ Öffnungszeit gemessen '[s']]] -> 0,05/0,05 | S10: -40/80 | T10: =Tabelle1[[#This Row],[NennØ]] -> 20 | U10: 20.29775 | V10: 107.2470645 | W10: 27.33333333
A11: 0398921 | B11: 21 | C11: Schnappscheibe | D11: 20.79 | E11: =E10*Tabelle1[[#This Row],[NennØ]]/B10 -> 30.45 | F11: M14x1,5 | G11: M5 | H11: =CONCATENATE("LOG ",FIXED(Tabelle1[[#This Row],[NennØ]],1),"-",Tabelle1[[#This Row],[A]],"-",Tabelle1[[#This Row],[B]]) -> LOG 21,0-M14x1,5-M5 | I11: keine Messung | J11: keine Messung | K11: =(($K$15-$K$10)/($B$15-$B$10))*Tabelle1[[#This Row],[NennØ]]+$K$15-$B$15*(($K$15-$K$10)/($B$15-$B$10)) -> 0.0088 | L11: =0.1*Tabelle1[[#This Row],[F(dmin) berechnete Greifkraft 6 bar]]/9.81/2 -> 0.550078502 | M11: keine Messung | N11: =(($N$15-$N$10)/($B$15-$B$10))*Tabelle1[[#This Row],[NennØ]]+$N$15-$B$15*(($N$15-$N$10)/($B$15-$B$10)) -> 2.84 | O11: 6 | P11: 6 | Q11: keine Messung | R11: 0,05/0,05 | S11: -40/80 | T11: =Tabelle1[[#This Row],[NennØ]] -> 21 | U11: 21.4119 | V11: 107.9254021 | W11: 28.53333333
A12: 0398922 | B12: 22 | C12: Schnappscheibe | D12: 21.78 | E12: =E11*Tabelle1[[#This Row],[NennØ]]/B11 -> 31.9 | F12: M14x1,5 | G12: M5 | H12: =CONCATENATE("LOG ",FIXED(Tabelle1[[#This Row],[NennØ]],1),"-",Tabelle1[[#This Row],[A]],"-",Tabelle1[[#This Row],[B]]) -> LOG 22,0-M14x1,5-M5 | I12: keine Messung | J12: keine Messung | K12: =(($K$15-$K$10)/($B$15-$B$10))*Tabelle1[[#This Row],[NennØ]]+$K$15-$B$15*(($K$15-$K$10)/($B$15-$B$10)) -> 0.0096 | L12: =0.1*Tabelle1[[#This Row],[F(dmin) berechnete Greifkraft 6 bar]]/9.81/2 -> 0.5640067126 | M12: keine Messung | N12: =(($N$15-$N$10)/($B$15-$B$10))*Tabelle1[[#This Row],[NennØ]]+$N$15-$B$15*(($N$15-$N$10)/($B$15-$B$10)) -> 3.33 | O12: 6 | P12: 6 | Q12: keine Messung | R12: 0,05/0,05 | S12: -40/80 | T12: =Tabelle1[[#This Row],[NennØ]] -> 22 | U12: 22.52605 | V12: 110.658117 | W12: 29.73333333
A13: 0398923 | B13: 23 | C13: Schnappscheibe | D13: 22.77 | E13: =E12*Tabelle1[[#This Row],[NennØ]]/B12 -> 33.35 | F13: M14x1,5 | G13: M5 | H13: =CONCATENATE("LOG ",FIXED(Tabelle1[[#This Row],[NennØ]],1),"-",Tabelle1[[#This Row],[A]],"-",Tabelle1[[#This Row],[B]]) -> LOG 23,0-M14x1,5-M5 | I13: keine Messung | J13: keine Messung | K13: =(($K$15-$K$10)/($B$15-$B$10))*Tabelle1[[#This Row],[NennØ]]+$K$15-$B$15*(($K$15-$K$10)/($B$15-$B$10)) -> 0.0104 | L13: =0.1*Tabelle1[[#This Row],[F(dmin) berechnete Greifkraft 6 bar]]/9.81/2 -> 0.5822686911 | M13: keine Messung | N13: =(($N$15-$N$10)/($B$15-$B$10))*Tabelle1[[#This Row],[NennØ]]+$N$15-$B$15*(($N$15-$N$10)/($B$15-$B$10)) -> 3.82 | O13: 6 | P13: 6 | Q13: keine Messung | R13: 0,05/0,05 | S13: -40/80 | T13: =Tabelle1[[#This Row],[NennØ]] -> 23 | U13: 23.6402 | V13: 114.2411172 | W13: 30.93333333
A14: 0398924 | B14: 24 | C14: Schnappscheibe | D14: 23.76 | E14: =E13*Tabelle1[[#This Row],[NennØ]]/B13 -> 34.8 | F14: M14x1,5 | G14: M5 | H14: =CONCATENATE("LOG ",FIXED(Tabelle1[[#This Row],[NennØ]],1),"-",Tabelle1[[#This Row],[A]],"-",Tabelle1[[#This Row],[B]]) -> LOG 24,0-M14x1,5-M5 | I14: keine Messung | J14: keine Messung | K14: =(($K$15-$K$10)/($B$15-$B$10))*Tabelle1[[#This Row],[NennØ]]+$K$15-$B$15*(($K$15-$K$10)/($B$15-$B$10)) -> 0.0112 | L14: =0.1*Tabelle1[[#This Row],[F(dmin) berechnete Greifkraft 6 bar]]/9.81/2 -> 0.602739517 | M14: keine Messung | N14: =(($N$15-$N$10)/($B$15-$B$10))*Tabelle1[[#This Row],[NennØ]]+$N$15-$B$15*(($N$15-$N$10)/($B$15-$B$10)) -> 4.31 | O14: 6 | P14: 6 | Q14: keine Messung | R14: 0,05/0,05 | S14: -40/80 | T14: =Tabelle1[[#This Row],[NennØ]] -> 24 | U14: 24.75435 | V14: 118.2574932 | W14: 32.13333333
A15: 0398925 | B15: 25 | C15: Schnappscheibe | D15: 24.75 | E15: =E14*Tabelle1[[#This Row],[NennØ]]/B14 -> 36.25 | F15: M14x1,5 | G15: M5 | H15: =CONCATENATE("LOG ",FIXED(Tabelle1[[#This Row],[NennØ]],1),"-",Tabelle1[[#This Row],[A]],"-",Tabelle1[[#This Row],[B]]) -> LOG 25,0-M14x1,5-M5 | I15: 0.011936234 | J15: 0.012 | K15: =Tabelle1[[#This Row],[Eigen- masse gemessen '[kg']]] -> 0.012 | L15: =0.1*Tabelle1[[#This Row],[F(dmin) berechnete Greifkraft 6 bar]]/9.81/2 -> 0.6244882986 | M15: 4.8 | N15: =Tabelle1[[#This Row],[Fluidverbrauch pro Doppelhub (Volumen Pro/E) '[cm^3']]] -> 4.8 | O15: 6 | P15: 6 | Q15: 0,05/0,05 | R15: =Tabelle1[[#This Row],[Schließ-/ Öffnungszeit gemessen '[s']]] -> 0,05/0,05 | S15: -40/80 | T15: =Tabelle1[[#This Row],[NennØ]] -> 25 | U15: 25.8685 | V15: 122.5246042 | W15: 33.33333333
A16: 0398926 | B16: 26 | C16: Schnappscheibe | D16: 25.74 | E16: =E15*Tabelle1[[#This Row],[NennØ]]/B15 -> 37.7 | F16: M16x1 | G16: M5 | H16: =CONCATENATE("LOG ",FIXED(Tabelle1[[#This Row],[NennØ]],1),"-",Tabelle1[[#This Row],[A]],"-",Tabelle1[[#This Row],[B]]) -> LOG 26,0-M16x1-M5 | I16: keine Messung | J16: keine Messung | K16: =(($K$20-$K$15)/($B$20-$B$15))*Tabelle1[[#This Row],[NennØ]]+$K$20-$B$20*(($K$20-$K$15)/($B$20-$B$15)) -> 0.0136 | L16: =0.1*Tabelle1[[#This Row],[F(dmin) berechnete Greifkraft 6 bar]]/9.81/2 -> 0.6407564641 | M16: keine Messung | N16: =(($N$20-$N$15)/($B$20-$B$15))*Tabelle1[[#This Row],[NennØ]]+$N$20-$B$20*(($N$20-$N$15)/($B$20-$B$15)) -> 5.56 | O16: 6 | P16: 6 | Q16: keine Messung | R16: 0,05/0,05 | S16: -40/80 | T16: =Tabelle1[[#This Row],[NennØ]] -> 26 | U16: 27.0523 | V16: 125.7164183 | W16: 34.66666667
A17: 0398927 | B17: 27 | C17: Schnappscheibe | D17: 26.73 | E17: =E16*Tabelle1[[#This Row],[NennØ]]/B16 -> 39.15 | F17: M16x1 | G17: M5 | H17: =CONCATENATE("LOG ",FIXED(Tabelle1[[#This Row],[NennØ]],1),"-",Tabelle1[[#This Row],[A]],"-",Tabelle1[[#This Row],[B]]) -> LOG 27,0-M16x1-M5 | I17: keine Messung | J17: keine Messung | K17: =(($K$20-$K$15)/($B$20-$B$15))*Tabelle1[[#This Row],[NennØ]]+$K$20-$B$20*(($K$20-$K$15)/($B$20-$B$15)) -> 0.0152 | L17: =0.1*Tabelle1[[#This Row],[F(dmin) berechnete Greifkraft 6 bar]]/9.81/2 -> 0.6558442903 | M17: keine Messung | N17: =(($N$20-$N$15)/($B$20-$B$15))*Tabelle1[[#This Row],[NennØ]]+$N$20-$B$20*(($N$20-$N$15)/($B$20-$B$15)) -> 6.32 | O17: 6 | P17: 6 | Q17: keine Messung | R17: 0,06/0,06 | S17: -40/80 | T17: =Tabelle1[[#This Row],[NennØ]] -> 27 | U17: 28.2361 | V17: 128.6766498 | W17: 36
A18: 0398928 | B18: 28 | C18: Schnappscheibe | D18: 27.72 | E18: =E17*Tabelle1[[#This Row],[NennØ]]/B17 -> 40.6 | F18: M16x1 | G18: M5 | H18: =CONCATENATE("LOG ",FIXED(Tabelle1[[#This Row],[NennØ]],1),"-",Tabelle1[[#This Row],[A]],"-",Tabelle1[[#This Row],[B]]) -> LOG 28,0-M16x1-M5 | I18: keine Messung | J18: keine Messung | K18: =(($K$20-$K$15)/($B$20-$B$15))*Tabelle1[[#This Row],[NennØ]]+$K$20-$B$20*(($K$20-$K$15)/($B$20-$B$15)) -> 0.0168 | L18: =0.1*Tabelle1[[#This Row],[F(dmin) berechnete Greifkraft 6 bar]]/9.81/2 -> 0.6701945227 | M18: keine Messung | N18: =(($N$20-$N$15)/($B$20-$B$15))*Tabelle1[[#This Row],[NennØ]]+$N$20-$B$20*(($N$20-$N$15)/($B$20-$B$15)) -> 7.08 | O18: 6 | P18: 6 | Q18: keine Messung | R18: 0,06/0,06 | S18: -40/80 | T18: =Tabelle1[[#This Row],[NennØ]] -> 28 | U18: 29.4199 | V18: 131.4921654 | W18: 37.33333333
A19: 0398929 | B19: 29 | C19: Schnappscheibe | D19: 28.71 | E19: =E18*Tabelle1[[#This Row],[NennØ]]/B18 -> 42.05 | F19: M16x1 | G19: M5 | H19: =CONCATENATE("LOG ",FIXED(Tabelle1[[#This Row],[NennØ]],1),"-",Tabelle1[[#This Row],[A]],"-",Tabelle1[[#This Row],[B]]) -> LOG 29,0-M16x1-M5 | I19: keine Messung | J19: keine Messung | K19: =(($K$20-$K$15)/($B$20-$B$15))*Tabelle1[[#This Row],[NennØ]]+$K$20-$B$20*(($K$20-$K$15)/($B$20-$B$15)) -> 0.0184 | L19: =0.1*Tabelle1[[#This Row],[F(dmin) berechnete Greifkraft 6 bar]]/9.81/2 -> 0.6840530844 | M19: keine Messung | N19: =(($N$20-$N$15)/($B$20-$B$15))*Tabelle1[[#This Row],[NennØ]]+$N$20-$B$20*(($N$20-$N$15)/($B$20-$B$15)) -> 7.84 | O19: 6 | P19: 6 | Q19: keine Messung | R19: 0,06/0,06 | S19: -40/80 | T19: =Tabelle1[[#This Row],[NennØ]] -> 29 | U19: 30.6037 | V19: 134.2112152 | W19: 38.66666667
A20: 0398930 | B20: 30 | C20: Schnappscheibe | D20: 29.7 | E20: =E19*Tabelle1[[#This Row],[NennØ]]/B19 -> 43.5 | F20: M16x1 | G20: M5 | H20: =CONCATENATE("LOG ",FIXED(Tabelle1[[#This Row],[NennØ]],1),"-",Tabelle1[[#This Row],[A]],"-",Tabelle1[[#This Row],[B]]) -> LOG 30,0-M16x1-M5 | I20: 0.018530765 | J20: 0.02 | K20: =Tabelle1[[#This Row],[Eigen- masse gemessen '[kg']]] -> 0.02 | L20: =0.1*Tabelle1[[#This Row],[F(dmin) berechnete Greifkraft 6 bar]]/9.81/2 -> 0.6975675081 | M20: 8.6 | N20: =Tabelle1[[#This Row],[Fluidverbrauch pro Doppelhub (Volumen Pro/E) '[cm^3']]] -> 8.6 | O20: 6 | P20: 6 | Q20: keine Messung | R20: 0,06/0,06 | S20: -40/80 | T20: =Tabelle1[[#This Row],[NennØ]] -> 30 | U20: 31.7875 | V20: 136.8627451 | W20: 40
A21: 0398931 | B21: 31 | C21: Schnappscheibe | D21: 30.69 | E21: =E20*Tabelle1[[#This Row],[NennØ]]/B20 -> 44.95 | F21: M16x1 | G21: M5 | H21: =CONCATENATE("LOG ",FIXED(Tabelle1[[#This Row],[NennØ]],1),"-",Tabelle1[[#This Row],[A]],"-",Tabelle1[[#This Row],[B]]) -> LOG 31,0-M16x1-M5 | I21: keine Messung | J21: keine Messung | K21: =(($K$20-$K$15)/($B$20-$B$15))*Tabelle1[[#This Row],[NennØ]]+$K$20-$B$20*(($K$20-$K$15)/($B$20-$B$15)) -> 0.0216 | L21: =0.1*Tabelle1[[#This Row],[F(dmin) berechnete Greifkraft 6 bar]]/9.81/2 -> 0.710831668 | M21: keine Messung | N21: =(($N$20-$N$15)/($B$20-$B$15))*Tabelle1[[#This Row],[NennØ]]+$N$20-$B$20*(($N$20-$N$15)/($B$20-$B$15)) -> 9.36 | O21: 6 | P21: 6 | Q21: keine Messung | R21: 0,06/0,06 | S21: -40/80 | T21: =Tabelle1[[#This Row],[NennØ]] -> 31 | U21: 32.9713 | V21: 139.4651733 | W21: 41.33333333
A22: 0398932 | B22: 32 | C22: Faltenbalg | D22: =0.99*B22 -> 31.68 | E22: 37.6 | F22: M16x1 | G22: M5 | H22: =CONCATENATE("LOG ",FIXED(Tabelle1[[#This Row],[NennØ]],1),"-",Tabelle1[[#This Row],[A]],"-",Tabelle1[[#This Row],[B]]) -> LOG 32,0-M16x1-M5 | I22: 0.018111387 | J22: 0.02 | K22: =Tabelle1[[#This Row],[Eigen- masse gemessen '[kg']]] -> 0.02 | L22: =0.1*Tabelle1[[#This Row],[F(dmin) berechnete Greifkraft 6 bar]]/9.81/2 -> 0.6806882956 | M22: 3.95 | N22: =Tabelle1[[#This Row],[Fluidverbrauch pro Doppelhub (Volumen Pro/E) '[cm^3']]] -> 3.95 | O22: 6 | P22: 6 | Q22: 0,06/0,06 | R22: =Tabelle1[[#This Row],[Schließ-/ Öffnungszeit gemessen '[s']]] -> 0,06/0,06 | S22: -40/80 | T22: =Tabelle1[[#This Row],[NennØ]] -> 32 | U22: 34.2215 | V22: 133.5510436 | W22: 20
A23: 0398933 | B23: 33 | C23: Faltenbalg | D23: 32.67 | E23: =E22*Tabelle1[[#This Row],[NennØ]]/B22 -> 38.775 | F23: M16x1 | G23: M5 | H23: =CONCATENATE("LOG ",FIXED(Tabelle1[[#This Row],[NennØ]],1),"-",Tabelle1[[#This Row],[A]],"-",Tabelle1[[#This Row],[B]]) -> LOG 33,0-M16x1-M5 | I23: keine Messung | J23: keine Messung | K23: =(($K$30-$K$22)/($B$30-$B$22))*Tabelle1[[#This Row],[NennØ]]+$K$30-$B$30*(($K$30-$K$22)/($B$30-$B$22)) -> 0.02175 | L23: =0.1*Tabelle1[[#This Row],[F(dmin) berechnete Greifkraft 6 bar]]/9.81/2 -> 0.7539575158 | M23: keine Messung | N23: =(($N$30-$N$22)/($B$30-$B$22))*Tabelle1[[#This Row],[NennØ]]+$N$30-$B$30*(($N$30-$N$22)/($B$30-$B$22)) -> 4.4825 | O23: 6 | P23: 6 | Q23: keine Messung | R23: 0,06/0,06 | S23: -40/80 | T23: =Tabelle1[[#This Row],[NennØ]] -> 33 | U23: 35.490125 | V23: 147.9264646 | W23: 25.83333333
A24: 0398934 | B24: 34 | C24: Faltenbalg | D24: 33.66 | E24: =E23*Tabelle1[[#This Row],[NennØ]]/B23 -> 39.95 | F24: M16x1 | G24: M5 | H24: =CONCATENATE("LOG ",FIXED(Tabelle1[[#This Row],[NennØ]],1),"-",Tabelle1[[#This Row],[A]],"-",Tabelle1[[#This Row],[B]]) -> LOG 34,0-M16x1-M5 | I24: keine Messung | J24: keine Messung | K24: =(($K$30-$K$22)/($B$30-$B$22))*Tabelle1[[#This Row],[NennØ]]+$K$30-$B$30*(($K$30-$K$22)/($B$30-$B$22)) -> 0.0235 | L24: =0.1*Tabelle1[[#This Row],[F(dmin) berechnete Greifkraft 6 bar]]/9.81/2 -> 0.8253992472 | M24: keine Messung | N24: =(($N$30-$N$22)/($B$30-$B$22))*Tabelle1[[#This Row],[NennØ]]+$N$30-$B$30*(($N$30-$N$22)/($B$30-$B$22)) -> 5.015 | O24: 6 | P24: 6 | Q24: keine Messung | R24: 0,06/0,06 | S24: -40/80 | T24: =Tabelle1[[#This Row],[NennØ]] -> 34 | U24: 36.75875 | V24: 161.9433323 | W24: 31.66666667
A25: 0398935 | B25: 35 | C25: Faltenbalg | D25: 34.65 | E25: =E24*Tabelle1[[#This Row],[NennØ]]/B24 -> 41.125 | F25: M16x1 | G25: M5 | H25: =CONCATENATE("LOG ",FIXED(Tabelle1[[#This Row],[NennØ]],1),"-",Tabelle1[[#This Row],[A]],"-",Tabelle1[[#This Row],[B]]) -> LOG 35,0-M16x1-M5 | I25: keine Messung | J25: keine Messung | K25: =(($K$30-$K$22)/($B$30-$B$22))*Tabelle1[[#This Row],[NennØ]]+$K$30-$B$30*(($K$30-$K$22)/($B$30-$B$22)) -> 0.02525 | L25: =0.1*Tabelle1[[#This Row],[F(dmin) berechnete Greifkraft 6 bar]]/9.81/2 -> 0.8953538179 | M25: keine Messung | N25: =(($N$30-$N$22)/($B$30-$B$22))*Tabelle1[[#This Row],[NennØ]]+$N$30-$B$30*(($N$30-$N$22)/($B$30-$B$22)) -> 5.5475 | O25: 6 | P25: 6 | Q25: keine Messung | R25: 0,07/0,07 | S25: -40/80 | T25: =Tabelle1[[#This Row],[NennØ]] -> 35 | U25: 38.027375 | V25: 175.6684191 | W25: 37.5
A26: 0398936 | B26: 36 | C26: Faltenbalg | D26: 35.64 | E26: =E25*Tabelle1[[#This Row],[NennØ]]/B25 -> 42.3 | F26: M16x1 | G26: M5 | H26: =CONCATENATE("LOG ",FIXED(Tabelle1[[#This Row],[NennØ]],1),"-",Tabelle1[[#This Row],[A]],"-",Tabelle1[[#This Row],[B]]) -> LOG 36,0-M16x1-M5 | I26: keine Messung | J26: keine Messung | K26: =(($K$30-$K$22)/($B$30-$B$22))*Tabelle1[[#This Row],[NennØ]]+$K$30-$B$30*(($K$30-$K$22)/($B$30-$B$22)) -> 0.027 | L26: =0.1*Tabelle1[[#This Row],[F(dmin) berechnete Greifkraft 6 bar]]/9.81/2 -> 0.9640819907 | M26: keine Messung | N26: =(($N$30-$N$22)/($B$30-$B$22))*Tabelle1[[#This Row],[NennØ]]+$N$30-$B$30*(($N$30-$N$22)/($B$30-$B$22)) -> 6.08 | O26: 6 | P26: 6 | Q26: keine Messung | R26: 0,07/0,07 | S26: -40/80 | T26: =Tabelle1[[#This Row],[NennØ]] -> 36 | U26: 39.296 | V26: 189.1528866 | W26: 43.33333333
A27: 0398937 | B27: 37 | C27: Faltenbalg | D27: 36.63 | E27: =E26*Tabelle1[[#This Row],[NennØ]]/B26 -> 43.475 | F27: M16x1 | G27: M5 | H27: =CONCATENATE("LOG ",FIXED(Tabelle1[[#This Row],[NennØ]],1),"-",Tabelle1[[#This Row],[A]],"-",Tabelle1[[#This Row],[B]]) -> LOG 37,0-M16x1-M5 | I27: keine Messung | J27: keine Messung | K27: =(($K$30-$K$22)/($B$30-$B$22))*Tabelle1[[#This Row],[NennØ]]+$K$30-$B$30*(($K$30-$K$22)/($B$30-$B$22)) -> 0.02875 | L27: =0.1*Tabelle1[[#This Row],[F(dmin) berechnete Greifkraft 6 bar]]/9.81/2 -> 1.031786931 | M27: keine Messung | N27: =(($N$30-$N$22)/($B$30-$B$22))*Tabelle1[[#This Row],[NennØ]]+$N$30-$B$30*(($N$30-$N$22)/($B$30-$B$22)) -> 6.6125 | O27: 6 | P27: 6 | Q27: keine Messung | R27: 0,07/0,07 | S27: -40/80 | T27: =Tabelle1[[#This Row],[NennØ]] -> 37 | U27: 40.564625 | V27: 202.4365958 | W27: 49.16666667
A28: 0398938 | B28: 38 | C28: Faltenbalg | D28: 37.62 | E28: =E27*Tabelle1[[#This Row],[NennØ]]/B27 -> 44.65 | F28: M16x1 | G28: M5 | H28: =CONCATENATE("LOG ",FIXED(Tabelle1[[#This Row],[NennØ]],1),"-",Tabelle1[[#This Row],[A]],"-",Tabelle1[[#This Row],[B]]) -> LOG 38,0-M16x1-M5 | I28: keine Messung | J28: keine Messung | K28: =(($K$30-$K$22)/($B$30-$B$22))*Tabelle1[[#This Row],[NennØ]]+$K$30-$B$30*(($K$30-$K$22)/($B$30-$B$22)) -> 0.0305 | L28: =0.1*Tabelle1[[#This Row],[F(dmin) berechnete Greifkraft 6 bar]]/9.81/2 -> 1.098629277 | M28: keine Messung | N28: =(($N$30-$N$22)/($B$30-$B$22))*Tabelle1[[#This Row],[NennØ]]+$N$30-$B$30*(($N$30-$N$22)/($B$30-$B$22)) -> 7.145 | O28: 6 | P28: 6 | Q28: keine Messung | R28: 0,08/0,08 | S28: -40/80 | T28: =Tabelle1[[#This Row],[NennØ]] -> 38 | U28: 41.83325 | V28: 215.5510641 | W28: 55
A29: 0398939 | B29: 39 | C29: Faltenbalg | D29: 38.61 | E29: =E28*Tabelle1[[#This Row],[NennØ]]/B28 -> 45.825 | F29: M16x1 | G29: M5 | H29: =CONCATENATE("LOG ",FIXED(Tabelle1[[#This Row],[NennØ]],1),"-",Tabelle1[[#This Row],[A]],"-",Tabelle1[[#This Row],[B]]) -> LOG 39,0-M16x1-M5 | I29: keine Messung | J29: keine Messung | K29: =(($K$30-$K$22)/($B$30-$B$22))*Tabelle1[[#This Row],[NennØ]]+$K$30-$B$30*(($K$30-$K$22)/($B$30-$B$22)) -> 0.03225 | L29: =0.1*Tabelle1[[#This Row],[F(dmin) berechnete Greifkraft 6 bar]]/9.81/2 -> 1.164737715 | M29: keine Messung | N29: =(($N$30-$N$22)/($B$30-$B$22))*Tabelle1[[#This Row],[NennØ]]+$N$30-$B$30*(($N$30-$N$22)/($B$30-$B$22)) -> 7.6775 | O29: 6 | P29: 6 | Q29: keine Messung | R29: 0,08/0,08 | S29: -40/80 | T29: =Tabelle1[[#This Row],[NennØ]] -> 39 | U29: 43.101875 | V29: 228.5215396 | W29: 60.83333333
A30: 0398940 | B30: 40 | C30: Faltenbalg | D30: 39.6 | E30: =E29*Tabelle1[[#This Row],[NennØ]]/B29 -> 47 | F30: M16x1 | G30: M5 | H30: =CONCATENATE("LOG ",FIXED(Tabelle1[[#This Row],[NennØ]],1),"-",Tabelle1[[#This Row],[A]],"-",Tabelle1[[#This Row],[B]]) -> LOG 40,0-M16x1-M5 | I30: 0.031305568 | J30: 0.034 | K30: =Tabelle1[[#This Row],[Eigen- masse gemessen '[kg']]] -> 0.034 | L30: =0.1*Tabelle1[[#This Row],[F(dmin) berechnete Greifkraft 6 bar]]/9.81/2 -> 1.230216544 | M30: 8.21 | N30: =Tabelle1[[#This Row],[Fluidverbrauch pro Doppelhub (Volumen Pro/E) '[cm^3']]] -> 8.21 | O30: 6 | P30: 6 | Q30: 0,08/0,08 | R30: =Tabelle1[[#This Row],[Schließ-/ Öffnungszeit gemessen '[s']]] -> 0,08/0,08 | S30: -40/80 | T30: =Tabelle1[[#This Row],[NennØ]] -> 40 | U30: 44.3705 | V30: 241.368486 | W30: 66.66666667
A31: 0398941 | B31: 41 | C31: Faltenbalg | D31: =0.99*B31 -> 40.59 | E31: =E30*Tabelle1[[#This Row],[NennØ]]/B30 -> 48.175 | F31: M16x1 | G31: M5 | H31: =CONCATENATE("LOG ",FIXED(Tabelle1[[#This Row],[NennØ]],1),"-",Tabelle1[[#This Row],[A]],"-",Tabelle1[[#This Row],[B]]) -> LOG 41,0-M16x1-M5 | I31: keine Messung | J31: keine Messung | K31: =(($K$40-$K$30)/($B$40-$B$30))*Tabelle1[[#This Row],[NennØ]]+$K$40-$B$40*(($K$40-$K$30)/($B$40-$B$30)) -> 0.0368 | L31: =0.1*Tabelle1[[#This Row],[F(dmin) berechnete Greifkraft 6 bar]]/9.81/2 -> 1.327312942 | M31: keine Messung | N31: =(($N$40-$N$30)/($B$40-$B$30))*Tabelle1[[#This Row],[NennØ]]+$N$40-$B$40*(($N$40-$N$30)/($B$40-$B$30)) -> 8.975 | O31: 6 | P31: 6 | Q31: keine Messung | R31: 0,08/0,08 | S31: -40/80 | T31: =Tabelle1[[#This Row],[NennØ]] -> 41 | U31: 45.40345 | V31: 260.4187991 | W31: 76.66666667
A32: 0398942 | B32: 42 | C32: Faltenbalg | D32: 41.58 | E32: =E31*Tabelle1[[#This Row],[NennØ]]/B31 -> 49.35 | F32: M16x1 | G32: M5 | H32: =CONCATENATE("LOG ",FIXED(Tabelle1[[#This Row],[NennØ]],1),"-",Tabelle1[[#This Row],[A]],"-",Tabelle1[[#This Row],[B]]) -> LOG 42,0-M16x1-M5 | I32: keine Messung | J32: keine Messung | K32: =(($K$40-$K$30)/($B$40-$B$30))*Tabelle1[[#This Row],[NennØ]]+$K$40-$B$40*(($K$40-$K$30)/($B$40-$B$30)) -> 0.0396 | L32: =0.1*Tabelle1[[#This Row],[F(dmin) berechnete Greifkraft 6 bar]]/9.81/2 -> 1.424543016 | M32: keine Messung | N32: =(($N$40-$N$30)/($B$40-$B$30))*Tabelle1[[#This Row],[NennØ]]+$N$40-$B$40*(($N$40-$N$30)/($B$40-$B$30)) -> 9.74 | O32: 6 | P32: 6 | Q32: keine Messung | R32: 0,08/0,08 | S32: -40/80 | T32: =Tabelle1[[#This Row],[NennØ]] -> 42 | U32: 46.4364 | V32: 279.4953397 | W32: 86.66666667
A33: 0398943 | B33: 43 | C33: Faltenbalg | D33: 42.57 | E33: =E32*Tabelle1[[#This Row],[NennØ]]/B32 -> 50.525 | F33: M16x1 | G33: M5 | H33: =CONCATENATE("LOG ",FIXED(Tabelle1[[#This Row],[NennØ]],1),"-",Tabelle1[[#This Row],[A]],"-",Tabelle1[[#This Row],[B]]) -> LOG 43,0-M16x1-M5 | I33: keine Messung | J33: keine Messung | K33: =(($K$40-$K$30)/($B$40-$B$30))*Tabelle1[[#This Row],[NennØ]]+$K$40-$B$40*(($K$40-$K$30)/($B$40-$B$30)) -> 0.0424 | L33: =0.1*Tabelle1[[#This Row],[F(dmin) berechnete Greifkraft 6 bar]]/9.81/2 -> 1.521904477 | M33: keine Messung | N33: =(($N$40-$N$30)/($B$40-$B$30))*Tabelle1[[#This Row],[NennØ]]+$N$40-$B$40*(($N$40-$N$30)/($B$40-$B$30)) -> 10.505 | O33: 6 | P33: 6 | Q33: keine Messung | R33: 0,08/0,08 | S33: -40/80 | T33: =Tabelle1[[#This Row],[NennØ]] -> 43 | U33: 47.46935 | V33: 298.5976583 | W33: 96.66666667
A34: 0398944 | B34: 44 | C34: Faltenbalg | D34: 43.56 | E34: =E33*Tabelle1[[#This Row],[NennØ]]/B33 -> 51.7 | F34: M16x1 | G34: M5 | H34: =CONCATENATE("LOG ",FIXED(Tabelle1[[#This Row],[NennØ]],1),"-",Tabelle1[[#This Row],[A]],"-",Tabelle1[[#This Row],[B]]) -> LOG 44,0-M16x1-M5 | I34: keine Messung | J34: keine Messung | K34: =(($K$40-$K$30)/($B$40-$B$30))*Tabelle1[[#This Row],[NennØ]]+$K$40-$B$40*(($K$40-$K$30)/($B$40-$B$30)) -> 0.0452 | L34: =0.1*Tabelle1[[#This Row],[F(dmin) berechnete Greifkraft 6 bar]]/9.81/2 -> 1.619395086 | M34: keine Messung | N34: =(($N$40-$N$30)/($B$40-$B$30))*Tabelle1[[#This Row],[NennØ]]+$N$40-$B$40*(($N$40-$N$30)/($B$40-$B$30)) -> 11.27 | O34: 6 | P34: 6 | Q34: keine Messung | R34: 0,09/0,09 | S34: -40/80 | T34: =Tabelle1[[#This Row],[NennØ]] -> 44 | U34: 48.5023 | V34: 317.7253158 | W34: 106.6666667
A35: 0398945 | B35: 45 | C35: Faltenbalg | D35: 44.55 | E35: =E34*Tabelle1[[#This Row],[NennØ]]/B34 -> 52.875 | F35: M16x1 | G35: M5 | H35: =CONCATENATE("LOG ",FIXED(Tabelle1[[#This Row],[NennØ]],1),"-",Tabelle1[[#This Row],[A]],"-",Tabelle1[[#This Row],[B]]) -> LOG 45,0-M16x1-M5 | I35: keine Messung | J35: keine Messung | K35: =(($K$40-$K$30)/($B$40-$B$30))*Tabelle1[[#This Row],[NennØ]]+$K$40-$B$40*(($K$40-$K$30)/($B$40-$B$30)) -> 0.048 | L35: =0.1*Tabelle1[[#This Row],[F(dmin) berechnete Greifkraft 6 bar]]/9.81/2 -> 1.717012655 | M35: keine Messung | N35: =(($N$40-$N$30)/($B$40-$B$30))*Tabelle1[[#This Row],[NennØ]]+$N$40-$B$40*(($N$40-$N$30)/($B$40-$B$30)) -> 12.035 | O35: 6 | P35: 6 | Q35: keine Messung | R35: 0,09/0,09 | S35: -40/80 | T35: =Tabelle1[[#This Row],[NennØ]] -> 45 | U35: 49.53525 | V35: 336.877883 | W35: 116.6666667
A36: 0398946 | B36: 46 | C36: Faltenbalg | D36: 45.54 | E36: =E35*Tabelle1[[#This Row],[NennØ]]/B35 -> 54.05 | F36: M16x1 | G36: M5 | H36: =CONCATENATE("LOG ",FIXED(Tabelle1[[#This Row],[NennØ]],1),"-",Tabelle1[[#This Row],[A]],"-",Tabelle1[[#This Row],[B]]) -> LOG 46,0-M16x1-M5 | I36: keine Messung | J36: keine Messung | K36: =(($K$40-$K$30)/($B$40-$B$30))*Tabelle1[[#This Row],[NennØ]]+$K$40-$B$40*(($K$40-$K$30)/($B$40-$B$30)) -> 0.0508 | L36: =0.1*Tabelle1[[#This Row],[F(dmin) berechnete Greifkraft 6 bar]]/9.81/2 -> 1.814755047 | M36: keine Messung | N36: =(($N$40-$N$30)/($B$40-$B$30))*Tabelle1[[#This Row],[NennØ]]+$N$40-$B$40*(($N$40-$N$30)/($B$40-$B$30)) -> 12.8 | O36: 6 | P36: 6 | Q36: keine Messung | R36: 0,09/0,09 | S36: -40/80 | T36: =Tabelle1[[#This Row],[NennØ]] -> 46 | U36: 50.5682 | V36: 356.0549402 | W36: 126.6666667
A37: 0398947 | B37: 47 | C37: Faltenbalg | D37: 46.53 | E37: =E36*Tabelle1[[#This Row],[NennØ]]/B36 -> 55.225 | F37: M16x1 | G37: M5 | H37: =CONCATENATE("LOG ",FIXED(Tabelle1[[#This Row],[NennØ]],1),"-",Tabelle1[[#This Row],[A]],"-",Tabelle1[[#This Row],[B]]) -> LOG 47,0-M16x1-M5 | I37: keine Messung | J37: keine Messung | K37: =(($K$40-$K$30)/($B$40-$B$30))*Tabelle1[[#This Row],[NennØ]]+$K$40-$B$40*(($K$40-$K$30)/($B$40-$B$30)) -> 0.0536 | L37: =0.1*Tabelle1[[#This Row],[F(dmin) berechnete Greifkraft 6 bar]]/9.81/2 -> 1.912620169 | M37: keine Messung | N37: =(($N$40-$N$30)/($B$40-$B$30))*Tabelle1[[#This Row],[NennØ]]+$N$40-$B$40*(($N$40-$N$30)/($B$40-$B$30)) -> 13.565 | O37: 6 | P37: 6 | Q37: keine Messung | R37: 0,10/0,10 | S37: -40/80 | T37: =Tabelle1[[#This Row],[NennØ]] -> 47 | U37: 51.60115 | V37: 375.2560772 | W37: 136.6666667
A38: 0398948 | B38: 48 | C38: Faltenbalg | D38: 47.52 | E38: =E37*Tabelle1[[#This Row],[NennØ]]/B37 -> 56.4 | F38: =IF(AND(B38<=25,B38>=20),"M14x1,5",IF(B38<=63,"M16x1",IF(B38<=99,"M20x1,5","???"))) -> M16x1 | G38: M5 | H38: =CONCATENATE("LOG ",FIXED(Tabelle1[[#This Row],[NennØ]],1),"-",Tabelle1[[#This Row],[A]],"-",Tabelle1[[#This Row],[B]]) -> LOG 48,0-M16x1-M5 | I38: keine Messung | J38: keine Messung | K38: =(($K$40-$K$30)/($B$40-$B$30))*Tabelle1[[#This Row],[NennØ]]+$K$40-$B$40*(($K$40-$K$30)/($B$40-$B$30)) -> 0.0564 | L38: =0.1*Tabelle1[[#This Row],[F(dmin) berechnete Greifkraft 6 bar]]/9.81/2 -> 2.010605978 | M38: keine Messung | N38: =(($N$40-$N$30)/($B$40-$B$30))*Tabelle1[[#This Row],[NennØ]]+$N$40-$B$40*(($N$40-$N$30)/($B$40-$B$30)) -> 14.33 | O38: 6 | P38: 6 | Q38: keine Messung | R38: 0,10/0,10 | S38: -40/80 | T38: =Tabelle1[[#This Row],[NennØ]] -> 48 | U38: 52.6341 | V38: 394.4808929 | W38: 146.6666667
A39: 0398949 | B39: 49 | C39: Faltenbalg | D39: 48.51 | E39: =E38*Tabelle1[[#This Row],[NennØ]]/B38 -> 57.575 | F39: M16x1 | G39: M5 | H39: =CONCATENATE("LOG ",FIXED(Tabelle1[[#This Row],[NennØ]],1),"-",Tabelle1[[#This Row],[A]],"-",Tabelle1[[#This Row],[B]]) -> LOG 49,0-M16x1-M5 | I39: keine Messung | J39: keine Messung | K39: =(($K$40-$K$30)/($B$40-$B$30))*Tabelle1[[#This Row],[NennØ]]+$K$40-$B$40*(($K$40-$K$30)/($B$40-$B$30)) -> 0.0592 | L39: =0.1*Tabelle1[[#This Row],[F(dmin) berechnete Greifkraft 6 bar]]/9.81/2 -> 2.108710474 | M39: keine Messung | N39: =(($N$40-$N$30)/($B$40-$B$30))*Tabelle1[[#This Row],[NennØ]]+$N$40-$B$40*(($N$40-$N$30)/($B$40-$B$30)) -> 15.095 | O39: 6 | P39: 6 | Q39: keine Messung | R39: 0,10/0,10 | S39: -40/80 | T39: =Tabelle1[[#This Row],[NennØ]] -> 49 | U39: 53.66705 | V39: 413.7289951 | W39: 156.6666667
A40: 0398950 | B40: 50 | C40: Faltenbalg | D40: 49.5 | E40: =E39*Tabelle1[[#This Row],[NennØ]]/B39 -> 58.75 | F40: M16x1 | G40: M5 | H40: =CONCATENATE("LOG ",FIXED(Tabelle1[[#This Row],[NennØ]],1),"-",Tabelle1[[#This Row],[A]],"-",Tabelle1[[#This Row],[B]]) -> LOG 50,0-M16x1-M5 | I40: 0.05669 | J40: 0.062 | K40: =Tabelle1[[#This Row],[Eigen- masse gemessen '[kg']]] -> 0.062 | L40: =0.1*Tabelle1[[#This Row],[F(dmin) berechnete Greifkraft 6 bar]]/9.81/2 -> 2.206931702 | M40: 15.86 | N40: =Tabelle1[[#This Row],[Fluidverbrauch pro Doppelhub (Volumen Pro/E) '[cm^3']]] -> 15.86 | O40: 6 | P40: 6 | Q40: 0,10/0,10 | R40: =Tabelle1[[#This Row],[Schließ-/ Öffnungszeit gemessen '[s']]] -> 0,10/0,10 | S40: -40/80 | T40: =Tabelle1[[#This Row],[NennØ]] -> 50 | U40: 54.7 | V40: 433 | W40: 166.6666667
A41: 0398951 | B41: 51 | C41: Faltenbalg | D41: 50.49 | E41: =E40*Tabelle1[[#This Row],[NennØ]]/B40 -> 59.925 | F41: M16x1 | G41: M5 | H41: =CONCATENATE("LOG ",FIXED(Tabelle1[[#This Row],[NennØ]],1),"-",Tabelle1[[#This Row],[A]],"-",Tabelle1[[#This Row],[B]]) -> LOG 51,0-M16x1-M5 | I41: keine Messung | J41: keine Messung | K41: =(($K$54-$K$40)/($B$54-$B$40))*Tabelle1[[#This Row],[NennØ]]+$K$54-$B$54*(($K$54-$K$40)/($B$54-$B$40)) -> 0.06664285714 | L41: =0.1*Tabelle1[[#This Row],[F(dmin) berechnete Greifkraft 6 bar]]/9.81/2 -> 2.289028643 | M41: keine Messung | N41: =(($N$54-$N$40)/($B$54-$B$40))*Tabelle1[[#This Row],[NennØ]]+$N$54-$B$54*(($N$54-$N$40)/($B$54-$B$40)) -> 17.15635714 | O41: 6 | P41: 6 | Q41: keine Messung | R41: 0,10/0,10 | S41: -40/80 | T41: =Tabelle1[[#This Row],[NennØ]] -> 51 | U41: 55.84285714 | V41: 449.1074197 | W41: 169.047619
A42: 0398952 | B42: 52 | C42: Faltenbalg | D42: 51.48 | E42: =E41*Tabelle1[[#This Row],[NennØ]]/B41 -> 61.1 | F42: M16x1 | G42: M5 | H42: =CONCATENATE("LOG ",FIXED(Tabelle1[[#This Row],[NennØ]],1),"-",Tabelle1[[#This Row],[A]],"-",Tabelle1[[#This Row],[B]]) -> LOG 52,0-M16x1-M5 | I42: keine Messung | J42: keine Messung | K42: =(($K$54-$K$40)/($B$54-$B$40))*Tabelle1[[#This Row],[NennØ]]+$K$54-$B$54*(($K$54-$K$40)/($B$54-$B$40)) -> 0.07128571429 | L42: =0.1*Tabelle1[[#This Row],[F(dmin) berechnete Greifkraft 6 bar]]/9.81/2 -> 2.371475789 | M42: keine Messung | N42: =(($N$54-$N$40)/($B$54-$B$40))*Tabelle1[[#This Row],[NennØ]]+$N$54-$B$54*(($N$54-$N$40)/($B$54-$B$40)) -> 18.45271429 | O42: 6 | P42: 6 | Q42: keine Messung | R42: 0,10/0,10 | S42: -40/80 | T42: =Tabelle1[[#This Row],[NennØ]] -> 52 | U42: 56.98571429 | V42: 465.2835498 | W42: 171.4285714
A43: 0398953 | B43: 53 | C43: Faltenbalg | D43: 52.47 | E43: =E42*Tabelle1[[#This Row],[NennØ]]/B42 -> 62.275 | F43: M16x1 | G43: M5 | H43: =CONCATENATE("LOG ",FIXED(Tabelle1[[#This Row],[NennØ]],1),"-",Tabelle1[[#This Row],[A]],"-",Tabelle1[[#This Row],[B]]) -> LOG 53,0-M16x1-M5 | I43: keine Messung | J43: keine Messung | K43: =(($K$54-$K$40)/($B$54-$B$40))*Tabelle1[[#This Row],[NennØ]]+$K$54-$B$54*(($K$54-$K$40)/($B$54-$B$40)) -> 0.07592857143 | L43: =0.1*Tabelle1[[#This Row],[F(dmin) berechnete Greifkraft 6 bar]]/9.81/2 -> 2.454249794 | M43: keine Messung | N43: =(($N$54-$N$40)/($B$54-$B$40))*Tabelle1[[#This Row],[NennØ]]+$N$54-$B$54*(($N$54-$N$40)/($B$54-$B$40)) -> 19.74907143 | O43: 6 | P43: 6 | Q43: keine Messung | R43: 0,11/0,11 | S43: -40/80 | T43: =Tabelle1[[#This Row],[NennØ]] -> 53 | U43: 58.12857143 | V43: 481.5238095 | W43: 173.8095238
A44: 0398954 | B44: 54 | C44: Faltenbalg | D44: 53.46 | E44: =E43*Tabelle1[[#This Row],[NennØ]]/B43 -> 63.45 | F44: M16x1 | G44: M5 | H44: =CONCATENATE("LOG ",FIXED(Tabelle1[[#This Row],[NennØ]],1),"-",Tabelle1[[#This Row],[A]],"-",Tabelle1[[#This Row],[B]]) -> LOG 54,0-M16x1-M5 | I44: keine Messung | J44: keine Messung | K44: =(($K$54-$K$40)/($B$54-$B$40))*Tabelle1[[#This Row],[NennØ]]+$K$54-$B$54*(($K$54-$K$40)/($B$54-$B$40)) -> 0.08057142857 | L44: =0.1*Tabelle1[[#This Row],[F(dmin) berechnete Greifkraft 6 bar]]/9.81/2 -> 2.53732934 | M44: keine Messung | N44: =(($N$54-$N$40)/($B$54-$B$40))*Tabelle1[[#This Row],[NennØ]]+$N$54-$B$54*(($N$54-$N$40)/($B$54-$B$40)) -> 21.04542857 | O44: 6 | P44: 6 | Q44: keine Messung | R44: 0,11/0,11 | S44: -40/80 | T44: =Tabelle1[[#This Row],[NennØ]] -> 54 | U44: 59.27142857 | V44: 497.8240166 | W44: 176.1904762
A45: 0398955 | B45: 55 | C45: Faltenbalg | D45: 54.45 | E45: =E44*Tabelle1[[#This Row],[NennØ]]/B44 -> 64.625 | F45: M16x1 | G45: M5 | H45: =CONCATENATE("LOG ",FIXED(Tabelle1[[#This Row],[NennØ]],1),"-",Tabelle1[[#This Row],[A]],"-",Tabelle1[[#This Row],[B]]) -> LOG 55,0-M16x1-M5 | I45: keine Messung | J45: keine Messung | K45: =(($K$54-$K$40)/($B$54-$B$40))*Tabelle1[[#This Row],[NennØ]]+$K$54-$B$54*(($K$54-$K$40)/($B$54-$B$40)) -> 0.08521428571 | L45: =0.1*Tabelle1[[#This Row],[F(dmin) berechnete Greifkraft 6 bar]]/9.81/2 -> 2.620694926 | M45: keine Messung | N45: =(($N$54-$N$40)/($B$54-$B$40))*Tabelle1[[#This Row],[NennØ]]+$N$54-$B$54*(($N$54-$N$40)/($B$54-$B$40)) -> 22.34178571 | O45: 6 | P45: 6 | Q45: keine Messung | R45: 0,12/0,12 | S45: -40/80 | T45: =Tabelle1[[#This Row],[NennØ]] -> 55 | U45: 60.41428571 | V45: 514.1803445 | W45: 178.5714286
A46: 0398956 | B46: 56 | C46: Faltenbalg | D46: 55.44 | E46: =E45*Tabelle1[[#This Row],[NennØ]]/B45 -> 65.8 | F46: M16x1 | G46: M5 | H46: =CONCATENATE("LOG ",FIXED(Tabelle1[[#This Row],[NennØ]],1),"-",Tabelle1[[#This Row],[A]],"-",Tabelle1[[#This Row],[B]]) -> LOG 56,0-M16x1-M5 | I46: keine Messung | J46: keine Messung | K46: =(($K$54-$K$40)/($B$54-$B$40))*Tabelle1[[#This Row],[NennØ]]+$K$54-$B$54*(($K$54-$K$40)/($B$54-$B$40)) -> 0.08985714286 | L46: =0.1*Tabelle1[[#This Row],[F(dmin) berechnete Greifkraft 6 bar]]/9.81/2 -> 2.704328673 | M46: keine Messung | N46: =(($N$54-$N$40)/($B$54-$B$40))*Tabelle1[[#This Row],[NennØ]]+$N$54-$B$54*(($N$54-$N$40)/($B$54-$B$40)) -> 23.63814286 | O46: 6 | P46: 6 | Q46: keine Messung | R46: 0,12/0,12 | S46: -40/80 | T46: =Tabelle1[[#This Row],[NennØ]] -> 56 | U46: 61.55714286 | V46: 530.5892857 | W46: 180.952381
A47: 0398957 | B47: 57 | C47: Faltenbalg | D47: 56.43 | E47: =E46*Tabelle1[[#This Row],[NennØ]]/B46 -> 66.975 | F47: M16x1 | G47: M5 | H47: =CONCATENATE("LOG ",FIXED(Tabelle1[[#This Row],[NennØ]],1),"-",Tabelle1[[#This Row],[A]],"-",Tabelle1[[#This Row],[B]]) -> LOG 57,0-M16x1-M5 | I47: keine Messung | J47: keine Messung | K47: =(($K$54-$K$40)/($B$54-$B$40))*Tabelle1[[#This Row],[NennØ]]+$K$54-$B$54*(($K$54-$K$40)/($B$54-$B$40)) -> 0.0945 | L47: =0.1*Tabelle1[[#This Row],[F(dmin) berechnete Greifkraft 6 bar]]/9.81/2 -> 2.788214164 | M47: keine Messung | N47: =(($N$54-$N$40)/($B$54-$B$40))*Tabelle1[[#This Row],[NennØ]]+$N$54-$B$54*(($N$54-$N$40)/($B$54-$B$40)) -> 24.9345 | O47: 6 | P47: 6 | Q47: keine Messung | R47: 0,12/0,12 | S47: -40/80 | T47: =Tabelle1[[#This Row],[NennØ]] -> 57 | U47: 62.7 | V47: 547.047619 | W47: 183.3333333
A48: 0398958 | B48: 58 | C48: Faltenbalg | D48: 57.42 | E48: =E47*Tabelle1[[#This Row],[NennØ]]/B47 -> 68.15 | F48: M16x1 | G48: M5 | H48: =CONCATENATE("LOG ",FIXED(Tabelle1[[#This Row],[NennØ]],1),"-",Tabelle1[[#This Row],[A]],"-",Tabelle1[[#This Row],[B]]) -> LOG 58,0-M16x1-M5 | I48: keine Messung | J48: keine Messung | K48: =(($K$54-$K$40)/($B$54-$B$40))*Tabelle1[[#This Row],[NennØ]]+$K$54-$B$54*(($K$54-$K$40)/($B$54-$B$40)) -> 0.09914285714 | L48: =0.1*Tabelle1[[#This Row],[F(dmin) berechnete Greifkraft 6 bar]]/9.81/2 -> 2.872336294 | M48: keine Messung | N48: =(($N$54-$N$40)/($B$54-$B$40))*Tabelle1[[#This Row],[NennØ]]+$N$54-$B$54*(($N$54-$N$40)/($B$54-$B$40)) -> 26.23085714 | O48: 6 | P48: 6 | Q48: keine Messung | R48: 0,13/0,13 | S48: -40/80 | T48: =Tabelle1[[#This Row],[NennØ]] -> 58 | U48: 63.84285714 | V48: 563.552381 | W48: 185.7142857
A49: 0398959 | B49: 59 | C49: Faltenbalg | D49: 58.41 | E49: =E48*Tabelle1[[#This Row],[NennØ]]/B48 -> 69.325 | F49: M16x1 | G49: M5 | H49: =CONCATENATE("LOG ",FIXED(Tabelle1[[#This Row],[NennØ]],1),"-",Tabelle1[[#This Row],[A]],"-",Tabelle1[[#This Row],[B]]) -> LOG 59,0-M16x1-M5 | I49: keine Messung | J49: keine Messung | K49: =(($K$54-$K$40)/($B$54-$B$40))*Tabelle1[[#This Row],[NennØ]]+$K$54-$B$54*(($K$54-$K$40)/($B$54-$B$40)) -> 0.1037857143 | L49: =0.1*Tabelle1[[#This Row],[F(dmin) berechnete Greifkraft 6 bar]]/9.81/2 -> 2.956681143 | M49: keine Messung | N49: =(($N$54-$N$40)/($B$54-$B$40))*Tabelle1[[#This Row],[NennØ]]+$N$54-$B$54*(($N$54-$N$40)/($B$54-$B$40)) -> 27.52721429 | O49: 6 | P49: 6 | Q49: keine Messung | R49: 0,13/0,13 | S49: -40/80 | T49: =Tabelle1[[#This Row],[NennØ]] -> 59 | U49: 64.98571429 | V49: 580.1008403 | W49: 188.0952381
A50: 0398960 | B50: 60 | C50: Faltenbalg | D50: 59.4 | E50: =E49*Tabelle1[[#This Row],[NennØ]]/B49 -> 70.5 | F50: M16x1 | G50: M5 | H50: =CONCATENATE("LOG ",FIXED(Tabelle1[[#This Row],[NennØ]],1),"-",Tabelle1[[#This Row],[A]],"-",Tabelle1[[#This Row],[B]]) -> LOG 60,0-M16x1-M5 | I50: keine Messung | J50: keine Messung | K50: =(($K$54-$K$40)/($B$54-$B$40))*Tabelle1[[#This Row],[NennØ]]+$K$54-$B$54*(($K$54-$K$40)/($B$54-$B$40)) -> 0.1084285714 | L50: =0.1*Tabelle1[[#This Row],[F(dmin) berechnete Greifkraft 6 bar]]/9.81/2 -> 3.041235862 | M50: keine Messung | N50: =(($N$54-$N$40)/($B$54-$B$40))*Tabelle1[[#This Row],[NennØ]]+$N$54-$B$54*(($N$54-$N$40)/($B$54-$B$40)) -> 28.82357143 | O50: 6 | P50: 6 | Q50: keine Messung | R50: 0,14/0,14 | S50: -40/80 | T50: =Tabelle1[[#This Row],[NennØ]] -> 60 | U50: 66.12857143 | V50: 596.6904762 | W50: 190.4761905
A51: 0398961 | B51: 61 | C51: Faltenbalg | D51: 60.39 | E51: =E50*Tabelle1[[#This Row],[NennØ]]/B50 -> 71.675 | F51: M16x1 | G51: M5 | H51: =CONCATENATE("LOG ",FIXED(Tabelle1[[#This Row],[NennØ]],1),"-",Tabelle1[[#This Row],[A]],"-",Tabelle1[[#This Row],[B]]) -> LOG 61,0-M16x1-M5 | I51: keine Messung | J51: keine Messung | K51: =(($K$54-$K$40)/($B$54-$B$40))*Tabelle1[[#This Row],[NennØ]]+$K$54-$B$54*(($K$54-$K$40)/($B$54-$B$40)) -> 0.1130714286 | L51: =0.1*Tabelle1[[#This Row],[F(dmin) berechnete Greifkraft 6 bar]]/9.81/2 -> 3.125988572 | M51: keine Messung | N51: =(($N$54-$N$40)/($B$54-$B$40))*Tabelle1[[#This Row],[NennØ]]+$N$54-$B$54*(($N$54-$N$40)/($B$54-$B$40)) -> 30.11992857 | O51: 6 | P51: 6 | Q51: keine Messung | R51: 0,14/0,14 | S51: -40/80 | T51: =Tabelle1[[#This Row],[NennØ]] -> 61 | U51: 67.27142857 | V51: 613.3189578 | W51: 192.8571429
A52: 0398962 | B52: 62 | C52: Faltenbalg | D52: 61.38 | E52: =E51*Tabelle1[[#This Row],[NennØ]]/B51 -> 72.85 | F52: M16x1 | G52: M5 | H52: =CONCATENATE("LOG ",FIXED(Tabelle1[[#This Row],[NennØ]],1),"-",Tabelle1[[#This Row],[A]],"-",Tabelle1[[#This Row],[B]]) -> LOG 62,0-M16x1-M5 | I52: keine Messung | J52: keine Messung | K52: =(($K$54-$K$40)/($B$54-$B$40))*Tabelle1[[#This Row],[NennØ]]+$K$54-$B$54*(($K$54-$K$40)/($B$54-$B$40)) -> 0.1177142857 | L52: =0.1*Tabelle1[[#This Row],[F(dmin) berechnete Greifkraft 6 bar]]/9.81/2 -> 3.210928272 | M52: keine Messung | N52: =(($N$54-$N$40)/($B$54-$B$40))*Tabelle1[[#This Row],[NennØ]]+$N$54-$B$54*(($N$54-$N$40)/($B$54-$B$40)) -> 31.41628571 | O52: 6 | P52: 6 | Q52: keine Messung | R52: 0,15/0,15 | S52: -40/80 | T52: =Tabelle1[[#This Row],[NennØ]] -> 62 | U52: 68.41428571 | V52: 629.984127 | W52: 195.2380952
A53: 0398963 | B53: 63 | C53: Faltenbalg | D53: 62.37 | E53: =E52*Tabelle1[[#This Row],[NennØ]]/B52 -> 74.025 | F53: M16x1 | G53: M5 | H53: =CONCATENATE("LOG ",FIXED(Tabelle1[[#This Row],[NennØ]],1),"-",Tabelle1[[#This Row],[A]],"-",Tabelle1[[#This Row],[B]]) -> LOG 63,0-M16x1-M5 | I53: keine Messung | J53: keine Messung | K53: =(($K$54-$K$40)/($B$54-$B$40))*Tabelle1[[#This Row],[NennØ]]+$K$54-$B$54*(($K$54-$K$40)/($B$54-$B$40)) -> 0.1223571429 | L53: =0.1*Tabelle1[[#This Row],[F(dmin) berechnete Greifkraft 6 bar]]/9.81/2 -> 3.296044764 | M53: keine Messung | N53: =(($N$54-$N$40)/($B$54-$B$40))*Tabelle1[[#This Row],[NennØ]]+$N$54-$B$54*(($N$54-$N$40)/($B$54-$B$40)) -> 32.71264286 | O53: 6 | P53: 6 | Q53: keine Messung | R53: 0,15/0,15 | S53: -40/80 | T53: =Tabelle1[[#This Row],[NennØ]] -> 63 | U53: 69.55714286 | V53: 646.6839827 | W53: 197.6190476
A54: 0398964 | B54: 64 | C54: Faltenbalg | D54: 63.36 | E54: =E53*Tabelle1[[#This Row],[NennØ]]/B53 -> 75.2 | F54: M20x1,5 | G54: G1/8 | H54: =CONCATENATE("LOG ",FIXED(Tabelle1[[#This Row],[NennØ]],1),"-",Tabelle1[[#This Row],[A]],"-",Tabelle1[[#This Row],[B]]) -> LOG 64,0-M20x1,5-G1/8 | I54: 0.120663 | J54: 0.127 | K54: =Tabelle1[[#This Row],[Eigen- masse gemessen '[kg']]] -> 0.127 | L54: =0.1*Tabelle1[[#This Row],[F(dmin) berechnete Greifkraft 6 bar]]/9.81/2 -> 3.381328576 | M54: 34.009 | N54: =Tabelle1[[#This Row],[Fluidverbrauch pro Doppelhub (Volumen Pro/E) '[cm^3']]] -> 34.009 | O54: 6 | P54: 6 | Q54: 0,15/0,15 | R54: =Tabelle1[[#This Row],[Schließ-/ Öffnungszeit gemessen '[s']]] -> 0,15/0,15 | S54: -40/80 | T54: =Tabelle1[[#This Row],[NennØ]] -> 64 | U54: 70.7 | V54: 663.4166667 | W54: 200
A55: 0398965 | B55: 65 | C55: Faltenbalg | D55: 64.35 | E55: =E54*Tabelle1[[#This Row],[NennØ]]/B54 -> 76.375 | F55: M20x1,5 | G55: G1/8 | H55: =CONCATENATE("LOG ",FIXED(Tabelle1[[#This Row],[NennØ]],1),"-",Tabelle1[[#This Row],[A]],"-",Tabelle1[[#This Row],[B]]) -> LOG 65,0-M20x1,5-G1/8 | I55: keine Messung | J55: keine Messung | K55: =(($K$70-$K$54)/($B$70-$B$54))*Tabelle1[[#This Row],[NennØ]]+$K$70-$B$70*(($K$70-$K$54)/($B$70-$B$54)) -> 0.1339375 | L55: =0.1*Tabelle1[[#This Row],[F(dmin) berechnete Greifkraft 6 bar]]/9.81/2 -> 3.480547061 | M55: keine Messung | N55: =(($N$70-$N$54)/($B$70-$B$54))*Tabelle1[[#This Row],[NennØ]]+$N$70-$B$70*(($N$70-$N$54)/($B$70-$B$54)) -> 35.96716875 | O55: 6 | P55: 6 | Q55: keine Messung | R55: 0,15/0,15 | S55: -40/80 | T55: =Tabelle1[[#This Row],[NennØ]] -> 65 | U55: 71.825 | V55: 682.8833333 | W55: 214.5833333
A56: 0398966 | B56: 66 | C56: Faltenbalg | D56: 65.34 | E56: =E55*Tabelle1[[#This Row],[NennØ]]/B55 -> 77.55 | F56: M20x1,5 | G56: G1/8 | H56: =CONCATENATE("LOG ",FIXED(Tabelle1[[#This Row],[NennØ]],1),"-",Tabelle1[[#This Row],[A]],"-",Tabelle1[[#This Row],[B]]) -> LOG 66,0-M20x1,5-G1/8 | I56: keine Messung | J56: keine Messung | K56: =(($K$70-$K$54)/($B$70-$B$54))*Tabelle1[[#This Row],[NennØ]]+$K$70-$B$70*(($K$70-$K$54)/($B$70-$B$54)) -> 0.140875 | L56: =0.1*Tabelle1[[#This Row],[F(dmin) berechnete Greifkraft 6 bar]]/9.81/2 -> 3.579654856 | M56: keine Messung | N56: =(($N$70-$N$54)/($B$70-$B$54))*Tabelle1[[#This Row],[NennØ]]+$N$70-$B$70*(($N$70-$N$54)/($B$70-$B$54)) -> 37.9253375 | O56: 6 | P56: 6 | Q56: keine Messung | R56: 0,15/0,15 | S56: -40/80 | T56: =Tabelle1[[#This Row],[NennØ]] -> 66 | U56: 72.95 | V56: 702.3282828 | W56: 229.1666667
A57: 0398967 | B57: 67 | C57: Faltenbalg | D57: 66.33 | E57: =E56*Tabelle1[[#This Row],[NennØ]]/B56 -> 78.725 | F57: M20x1,5 | G57: G1/8 | H57: =CONCATENATE("LOG ",FIXED(Tabelle1[[#This Row],[NennØ]],1),"-",Tabelle1[[#This Row],[A]],"-",Tabelle1[[#This Row],[B]]) -> LOG 67,0-M20x1,5-G1/8 | I57: keine Messung | J57: keine Messung | K57: =(($K$70-$K$54)/($B$70-$B$54))*Tabelle1[[#This Row],[NennØ]]+$K$70-$B$70*(($K$70-$K$54)/($B$70-$B$54)) -> 0.1478125 | L57: =0.1*Tabelle1[[#This Row],[F(dmin) berechnete Greifkraft 6 bar]]/9.81/2 -> 3.678656919 | M57: keine Messung | N57: =(($N$70-$N$54)/($B$70-$B$54))*Tabelle1[[#This Row],[NennØ]]+$N$70-$B$70*(($N$70-$N$54)/($B$70-$B$54)) -> 39.88350625 | O57: 6 | P57: 6 | Q57: keine Messung | R57: 0,16/0,16 | S57: -40/80 | T57: =Tabelle1[[#This Row],[NennØ]] -> 67 | U57: 74.075 | V57: 721.7524876 | W57: 243.75
A58: 0398968 | B58: 68 | C58: Faltenbalg | D58: 67.32 | E58: =E57*Tabelle1[[#This Row],[NennØ]]/B57 -> 79.9 | F58: M20x1,5 | G58: G1/8 | H58: =CONCATENATE("LOG ",FIXED(Tabelle1[[#This Row],[NennØ]],1),"-",Tabelle1[[#This Row],[A]],"-",Tabelle1[[#This Row],[B]]) -> LOG 68,0-M20x1,5-G1/8 | I58: keine Messung | J58: keine Messung | K58: =(($K$70-$K$54)/($B$70-$B$54))*Tabelle1[[#This Row],[NennØ]]+$K$70-$B$70*(($K$70-$K$54)/($B$70-$B$54)) -> 0.15475 | L58: =0.1*Tabelle1[[#This Row],[F(dmin) berechnete Greifkraft 6 bar]]/9.81/2 -> 3.777557914 | M58: keine Messung | N58: =(($N$70-$N$54)/($B$70-$B$54))*Tabelle1[[#This Row],[NennØ]]+$N$70-$B$70*(($N$70-$N$54)/($B$70-$B$54)) -> 41.841675 | O58: 6 | P58: 6 | Q58: keine Messung | R58: 0,16/0,16 | S58: -40/80 | T58: =Tabelle1[[#This Row],[NennØ]] -> 68 | U58: 75.2 | V58: 741.1568627 | W58: 258.3333333
A59: 0398969 | B59: 69 | C59: Faltenbalg | D59: 68.31 | E59: =E58*Tabelle1[[#This Row],[NennØ]]/B58 -> 81.075 | F59: M20x1,5 | G59: G1/8 | H59: =CONCATENATE("LOG ",FIXED(Tabelle1[[#This Row],[NennØ]],1),"-",Tabelle1[[#This Row],[A]],"-",Tabelle1[[#This Row],[B]]) -> LOG 69,0-M20x1,5-G1/8 | I59: keine Messung | J59: keine Messung | K59: =(($K$70-$K$54)/($B$70-$B$54))*Tabelle1[[#This Row],[NennØ]]+$K$70-$B$70*(($K$70-$K$54)/($B$70-$B$54)) -> 0.1616875 | L59: =0.1*Tabelle1[[#This Row],[F(dmin) berechnete Greifkraft 6 bar]]/9.81/2 -> 3.876362235 | M59: keine Messung | N59: =(($N$70-$N$54)/($B$70-$B$54))*Tabelle1[[#This Row],[NennØ]]+$N$70-$B$70*(($N$70-$N$54)/($B$70-$B$54)) -> 43.79984375 | O59: 6 | P59: 6 | Q59: keine Messung | R59: 0,17/0,17 | S59: -40/80 | T59: =Tabelle1[[#This Row],[NennØ]] -> 69 | U59: 76.325 | V59: 760.5422705 | W59: 272.9166667
A60: 0398970 | B60: 70 | C60: Faltenbalg | D60: 69.3 | E60: =E59*Tabelle1[[#This Row],[NennØ]]/B59 -> 82.25 | F60: M20x1,5 | G60: G1/8 | H60: =CONCATENATE("LOG ",FIXED(Tabelle1[[#This Row],[NennØ]],1),"-",Tabelle1[[#This Row],[A]],"-",Tabelle1[[#This Row],[B]]) -> LOG 70,0-M20x1,5-G1/8 | I60: keine Messung | J60: keine Messung | K60: =(($K$70-$K$54)/($B$70-$B$54))*Tabelle1[[#This Row],[NennØ]]+$K$70-$B$70*(($K$70-$K$54)/($B$70-$B$54)) -> 0.168625 | L60: =0.1*Tabelle1[[#This Row],[F(dmin) berechnete Greifkraft 6 bar]]/9.81/2 -> 3.975074026 | M60: keine Messung | N60: =(($N$70-$N$54)/($B$70-$B$54))*Tabelle1[[#This Row],[NennØ]]+$N$70-$B$70*(($N$70-$N$54)/($B$70-$B$54)) -> 45.7580125 | O60: 6 | P60: 6 | Q60: keine Messung | R60: 0,17/0,17 | S60: -40/80 | T60: =Tabelle1[[#This Row],[NennØ]] -> 70 | U60: 77.45 | V60: 779.9095238 | W60: 287.5
A61: 0398971 | B61: 71 | C61: Faltenbalg | D61: 70.29 | E61: =E60*Tabelle1[[#This Row],[NennØ]]/B60 -> 83.425 | F61: M20x1,5 | G61: G1/8 | H61: =CONCATENATE("LOG ",FIXED(Tabelle1[[#This Row],[NennØ]],1),"-",Tabelle1[[#This Row],[A]],"-",Tabelle1[[#This Row],[B]]) -> LOG 71,0-M20x1,5-G1/8 | I61: keine Messung | J61: keine Messung | K61: =(($K$70-$K$54)/($B$70-$B$54))*Tabelle1[[#This Row],[NennØ]]+$K$70-$B$70*(($K$70-$K$54)/($B$70-$B$54)) -> 0.1755625 | L61: =0.1*Tabelle1[[#This Row],[F(dmin) berechnete Greifkraft 6 bar]]/9.81/2 -> 4.073697195 | M61: keine Messung | N61: =(($N$70-$N$54)/($B$70-$B$54))*Tabelle1[[#This Row],[NennØ]]+$N$70-$B$70*(($N$70-$N$54)/($B$70-$B$54)) -> 47.71618125 | O61: 6 | P61: 6 | Q61: keine Messung | R61: 0,18/0,18 | S61: -40/80 | T61: =Tabelle1[[#This Row],[NennØ]] -> 71 | U61: 78.575 | V61: 799.2593897 | W61: 302.0833333
A62: 0398972 | B62: 72 | C62: Faltenbalg | D62: 71.28 | E62: =E61*Tabelle1[[#This Row],[NennØ]]/B61 -> 84.6 | F62: M20x1,5 | G62: G1/8 | H62: =CONCATENATE("LOG ",FIXED(Tabelle1[[#This Row],[NennØ]],1),"-",Tabelle1[[#This Row],[A]],"-",Tabelle1[[#This Row],[B]]) -> LOG 72,0-M20x1,5-G1/8 | I62: keine Messung | J62: keine Messung | K62: =(($K$70-$K$54)/($B$70-$B$54))*Tabelle1[[#This Row],[NennØ]]+$K$70-$B$70*(($K$70-$K$54)/($B$70-$B$54)) -> 0.1825 | L62: =0.1*Tabelle1[[#This Row],[F(dmin) berechnete Greifkraft 6 bar]]/9.81/2 -> 4.172235436 | M62: keine Messung | N62: =(($N$70-$N$54)/($B$70-$B$54))*Tabelle1[[#This Row],[NennØ]]+$N$70-$B$70*(($N$70-$N$54)/($B$70-$B$54)) -> 49.67435 | O62: 6 | P62: 6 | Q62: keine Messung | R62: 0,18/0,18 | S62: -40/80 | T62: =Tabelle1[[#This Row],[NennØ]] -> 72 | U62: 79.7 | V62: 818.5925926 | W62: 316.6666667
A63: 0398973 | B63: 73 | C63: Faltenbalg | D63: =0.99*B63 -> 72.27 | E63: =E62*Tabelle1[[#This Row],[NennØ]]/B62 -> 85.775 | F63: M20x1,5 | G63: G1/8 | H63: =CONCATENATE("LOG ",FIXED(Tabelle1[[#This Row],[NennØ]],1),"-",Tabelle1[[#This Row],[A]],"-",Tabelle1[[#This Row],[B]]) -> LOG 73,0-M20x1,5-G1/8 | I63: keine Messung | J63: keine Messung | K63: =(($K$70-$K$54)/($B$70-$B$54))*Tabelle1[[#This Row],[NennØ]]+$K$70-$B$70*(($K$70-$K$54)/($B$70-$B$54)) -> 0.1894375 | L63: =0.1*Tabelle1[[#This Row],[F(dmin) berechnete Greifkraft 6 bar]]/9.81/2 -> 4.270692239 | M63: keine Messung | N63: =(($N$70-$N$54)/($B$70-$B$54))*Tabelle1[[#This Row],[NennØ]]+$N$70-$B$70*(($N$70-$N$54)/($B$70-$B$54)) -> 51.63251875 | O63: 6 | P63: 6 | Q63: keine Messung | R63: 0,19/0,19 | S63: -40/80 | T63: =Tabelle1[[#This Row],[NennØ]] -> 73 | U63: 80.825 | V63: 837.9098174 | W63: 331.25
A64: 0398974 | B64: 74 | C64: Faltenbalg | D64: 73.26 | E64: =E63*Tabelle1[[#This Row],[NennØ]]/B63 -> 86.95 | F64: M20x1,5 | G64: G1/8 | H64: =CONCATENATE("LOG ",FIXED(Tabelle1[[#This Row],[NennØ]],1),"-",Tabelle1[[#This Row],[A]],"-",Tabelle1[[#This Row],[B]]) -> LOG 74,0-M20x1,5-G1/8 | I64: keine Messung | J64: keine Messung | K64: =(($K$70-$K$54)/($B$70-$B$54))*Tabelle1[[#This Row],[NennØ]]+$K$70-$B$70*(($K$70-$K$54)/($B$70-$B$54)) -> 0.196375 | L64: =0.1*Tabelle1[[#This Row],[F(dmin) berechnete Greifkraft 6 bar]]/9.81/2 -> 4.369070906 | M64: keine Messung | N64: =(($N$70-$N$54)/($B$70-$B$54))*Tabelle1[[#This Row],[NennØ]]+$N$70-$B$70*(($N$70-$N$54)/($B$70-$B$54)) -> 53.5906875 | O64: 6 | P64: 6 | Q64: keine Messung | R64: 0,19/0,19 | S64: -40/80 | T64: =Tabelle1[[#This Row],[NennØ]] -> 74 | U64: 81.95 | V64: 857.2117117 | W64: 345.8333333
A65: 0398975 | B65: 75 | C65: Faltenbalg | D65: 74.25 | E65: =E64*Tabelle1[[#This Row],[NennØ]]/B64 -> 88.125 | F65: M20x1,5 | G65: G1/8 | H65: =CONCATENATE("LOG ",FIXED(Tabelle1[[#This Row],[NennØ]],1),"-",Tabelle1[[#This Row],[A]],"-",Tabelle1[[#This Row],[B]]) -> LOG 75,0-M20x1,5-G1/8 | I65: keine Messung | J65: keine Messung | K65: =(($K$70-$K$54)/($B$70-$B$54))*Tabelle1[[#This Row],[NennØ]]+$K$70-$B$70*(($K$70-$K$54)/($B$70-$B$54)) -> 0.2033125 | L65: =0.1*Tabelle1[[#This Row],[F(dmin) berechnete Greifkraft 6 bar]]/9.81/2 -> 4.467374561 | M65: keine Messung | N65: =(($N$70-$N$54)/($B$70-$B$54))*Tabelle1[[#This Row],[NennØ]]+$N$70-$B$70*(($N$70-$N$54)/($B$70-$B$54)) -> 55.54885625 | O65: 6 | P65: 6 | Q65: keine Messung | R65: 0,20/0,20 | S65: -40/80 | T65: =Tabelle1[[#This Row],[NennØ]] -> 75 | U65: 83.075 | V65: 876.4988889 | W65: 360.4166667
A66: 0398976 | B66: 76 | C66: Faltenbalg | D66: 75.24 | E66: =E65*Tabelle1[[#This Row],[NennØ]]/B65 -> 89.3 | F66: M20x1,5 | G66: G1/8 | H66: =CONCATENATE("LOG ",FIXED(Tabelle1[[#This Row],[NennØ]],1),"-",Tabelle1[[#This Row],[A]],"-",Tabelle1[[#This Row],[B]]) -> LOG 76,0-M20x1,5-G1/8 | I66: keine Messung | J66: keine Messung | K66: =(($K$70-$K$54)/($B$70-$B$54))*Tabelle1[[#This Row],[NennØ]]+$K$70-$B$70*(($K$70-$K$54)/($B$70-$B$54)) -> 0.21025 | L66: =0.1*Tabelle1[[#This Row],[F(dmin) berechnete Greifkraft 6 bar]]/9.81/2 -> 4.565606166 | M66: keine Messung | N66: =(($N$70-$N$54)/($B$70-$B$54))*Tabelle1[[#This Row],[NennØ]]+$N$70-$B$70*(($N$70-$N$54)/($B$70-$B$54)) -> 57.507025 | O66: 6 | P66: 6 | Q66: keine Messung | R66: 0,20/0,20 | S66: -40/80 | T66: =Tabelle1[[#This Row],[NennØ]] -> 76 | U66: 84.2 | V66: 895.7719298 | W66: 375
A67: 0398977 | B67: 77 | C67: Faltenbalg | D67: 76.23 | E67: =E66*Tabelle1[[#This Row],[NennØ]]/B66 -> 90.475 | F67: M20x1,5 | G67: G1/8 | H67: =CONCATENATE("LOG ",FIXED(Tabelle1[[#This Row],[NennØ]],1),"-",Tabelle1[[#This Row],[A]],"-",Tabelle1[[#This Row],[B]]) -> LOG 77,0-M20x1,5-G1/8 | I67: keine Messung | J67: keine Messung | K67: =(($K$70-$K$54)/($B$70-$B$54))*Tabelle1[[#This Row],[NennØ]]+$K$70-$B$70*(($K$70-$K$54)/($B$70-$B$54)) -> 0.2171875 | L67: =0.1*Tabelle1[[#This Row],[F(dmin) berechnete Greifkraft 6 bar]]/9.81/2 -> 4.663768528 | M67: keine Messung | N67: =(($N$70-$N$54)/($B$70-$B$54))*Tabelle1[[#This Row],[NennØ]]+$N$70-$B$70*(($N$70-$N$54)/($B$70-$B$54)) -> 59.46519375 | O67: 6 | P67: 6 | Q67: keine Messung | R67: 0,21/0,21 | S67: -40/80 | T67: =Tabelle1[[#This Row],[NennØ]] -> 77 | U67: 85.325 | V67: 915.0313853 | W67: 389.5833333
A68: 0398978 | B68: 78 | C68: Faltenbalg | D68: 77.22 | E68: =E67*Tabelle1[[#This Row],[NennØ]]/B67 -> 91.65 | F68: M20x1,5 | G68: G1/8 | H68: =CONCATENATE("LOG ",FIXED(Tabelle1[[#This Row],[NennØ]],1),"-",Tabelle1[[#This Row],[A]],"-",Tabelle1[[#This Row],[B]]) -> LOG 78,0-M20x1,5-G1/8 | I68: keine Messung | J68: keine Messung | K68: =(($K$70-$K$54)/($B$70-$B$54))*Tabelle1[[#This Row],[NennØ]]+$K$70-$B$70*(($K$70-$K$54)/($B$70-$B$54)) -> 0.224125 | L68: =0.1*Tabelle1[[#This Row],[F(dmin) berechnete Greifkraft 6 bar]]/9.81/2 -> 4.761864311 | M68: keine Messung | N68: =(($N$70-$N$54)/($B$70-$B$54))*Tabelle1[[#This Row],[NennØ]]+$N$70-$B$70*(($N$70-$N$54)/($B$70-$B$54)) -> 61.4233625 | O68: 6 | P68: 6 | Q68: keine Messung | R68: 0,21/0,21 | S68: -40/80 | T68: =Tabelle1[[#This Row],[NennØ]] -> 78 | U68: 86.45 | V68: 934.2777778 | W68: 404.1666667
A69: 0398979 | B69: 79 | C69: Faltenbalg | D69: 78.21 | E69: =E68*Tabelle1[[#This Row],[NennØ]]/B68 -> 92.825 | F69: M20x1,5 | G69: G1/8 | H69: =CONCATENATE("LOG ",FIXED(Tabelle1[[#This Row],[NennØ]],1),"-",Tabelle1[[#This Row],[A]],"-",Tabelle1[[#This Row],[B]]) -> LOG 79,0-M20x1,5-G1/8 | I69: keine Messung | J69: keine Messung | K69: =(($K$70-$K$54)/($B$70-$B$54))*Tabelle1[[#This Row],[NennØ]]+$K$70-$B$70*(($K$70-$K$54)/($B$70-$B$54)) -> 0.2310625 | L69: =0.1*Tabelle1[[#This Row],[F(dmin) berechnete Greifkraft 6 bar]]/9.81/2 -> 4.859896042 | M69: keine Messung | N69: =(($N$70-$N$54)/($B$70-$B$54))*Tabelle1[[#This Row],[NennØ]]+$N$70-$B$70*(($N$70-$N$54)/($B$70-$B$54)) -> 63.38153125 | O69: 6 | P69: 6 | Q69: keine Messung | R69: 0,22/0,22 | S69: -40/80 | T69: =Tabelle1[[#This Row],[NennØ]] -> 79 | U69: 87.575 | V69: 953.5116034 | W69: 418.75
A70: 0398980 | B70: 80 | C70: Faltenbalg | D70: 79.2 | E70: =E69*Tabelle1[[#This Row],[NennØ]]/B69 -> 94 | F70: =IF(AND(B70<=25,B70>=20),"M14x1,5",IF(B70<=63,"M16x1",IF(B70<=99,"M20x1,5","???"))) -> M20x1,5 | G70: G1/8 | H70: =CONCATENATE("LOG ",FIXED(Tabelle1[[#This Row],[NennØ]],1),"-",Tabelle1[[#This Row],[A]],"-",Tabelle1[[#This Row],[B]]) -> LOG 80,0-M20x1,5-G1/8 | I70: 0.22813988 | J70: 0.238 | K70: =Tabelle1[[#This Row],[Eigen- masse gemessen '[kg']]] -> 0.238 | L70: =0.1*Tabelle1[[#This Row],[F(dmin) berechnete Greifkraft 6 bar]]/9.81/2 -> 4.957866123 | M70: 65.3397 | N70: =Tabelle1[[#This Row],[Fluidverbrauch pro Doppelhub (Volumen Pro/E) '[cm^3']]] -> 65.3397 | O70: 6 | P70: 6 | Q70: 0,22/0,22 | R70: =Tabelle1[[#This Row],[Schließ-/ Öffnungszeit gemessen '[s']]] -> 0,22/0,22 | S70: -40/80 | T70: =Tabelle1[[#This Row],[NennØ]] -> 80 | U70: 88.7 | V70: 972.7333333 | W70: 433.3333333
A71: 0398981 | B71: 81 | C71: Faltenbalg | D71: 80.19 | E71: =E70*Tabelle1[[#This Row],[NennØ]]/B70 -> 95.175 | F71: M20x1,5 | G71: G1/8 | H71: =CONCATENATE("LOG ",FIXED(Tabelle1[[#This Row],[NennØ]],1),"-",Tabelle1[[#This Row],[A]],"-",Tabelle1[[#This Row],[B]]) -> LOG 81,0-M20x1,5-G1/8 | I71: keine Messung | J71: keine Messung | K71: =(($K$89-$K$70)/($B$89-$B$70))*Tabelle1[[#This Row],[NennØ]]+$K$89-$B$89*(($K$89-$K$70)/($B$89-$B$70)) -> 0.2486315789 | L71: =0.1*Tabelle1[[#This Row],[F(dmin) berechnete Greifkraft 6 bar]]/9.81/2 -> 5.366824682 | M71: keine Messung | N71: =(($N$89-$N$70)/($B$89-$B$70))*Tabelle1[[#This Row],[NennØ]]+$N$89-$B$89*(($N$89-$N$70)/($B$89-$B$70)) -> 68.36387368 | O71: 6 | P71: 6 | Q71: keine Messung | R71: 0,23/0,23 | S71: -40/80 | T71: =Tabelle1[[#This Row],[NennØ]] -> 81 | U71: 89.85789474 | V71: 1052.971003 | W71: 471.9298246
A72: 0398982 | B72: 82 | C72: Faltenbalg | D72: 81.18 | E72: =E71*Tabelle1[[#This Row],[NennØ]]/B71 -> 96.35 | F72: M20x1,5 | G72: G1/8 | H72: =CONCATENATE("LOG ",FIXED(Tabelle1[[#This Row],[NennØ]],1),"-",Tabelle1[[#This Row],[A]],"-",Tabelle1[[#This Row],[B]]) -> LOG 82,0-M20x1,5-G1/8 | I72: keine Messung | J72: keine Messung | K72: =(($K$89-$K$70)/($B$89-$B$70))*Tabelle1[[#This Row],[NennØ]]+$K$89-$B$89*(($K$89-$K$70)/($B$89-$B$70)) -> 0.2592631579 | L72: =0.1*Tabelle1[[#This Row],[F(dmin) berechnete Greifkraft 6 bar]]/9.81/2 -> 5.776512601 | M72: keine Messung | N72: =(($N$89-$N$70)/($B$89-$B$70))*Tabelle1[[#This Row],[NennØ]]+$N$89-$B$89*(($N$89-$N$70)/($B$89-$B$70)) -> 71.38804737 | O72: 6 | P72: 6 | Q72: keine Messung | R72: 0,24/0,24 | S72: -40/80 | T72: =Tabelle1[[#This Row],[NennØ]] -> 82 | U72: 91.01578947 | V72: 1133.351772 | W72: 510.5263158
A73: 0398983 | B73: 83 | C73: Faltenbalg | D73: 82.17 | E73: =E72*Tabelle1[[#This Row],[NennØ]]/B72 -> 97.525 | F73: M20x1,5 | G73: G1/8 | H73: =CONCATENATE("LOG ",FIXED(Tabelle1[[#This Row],[NennØ]],1),"-",Tabelle1[[#This Row],[A]],"-",Tabelle1[[#This Row],[B]]) -> LOG 83,0-M20x1,5-G1/8 | I73: keine Messung | J73: keine Messung | K73: =(($K$89-$K$70)/($B$89-$B$70))*Tabelle1[[#This Row],[NennØ]]+$K$89-$B$89*(($K$89-$K$70)/($B$89-$B$70)) -> 0.2698947368 | L73: =0.1*Tabelle1[[#This Row],[F(dmin) berechnete Greifkraft 6 bar]]/9.81/2 -> 6.186896893 | M73: keine Messung | N73: =(($N$89-$N$70)/($B$89-$B$70))*Tabelle1[[#This Row],[NennØ]]+$N$89-$B$89*(($N$89-$N$70)/($B$89-$B$70)) -> 74.41222105 | O73: 6 | P73: 6 | Q73: keine Messung | R73: 0,25/0,25 | S73: -40/80 | T73: =Tabelle1[[#This Row],[NennØ]] -> 83 | U73: 92.17368421 | V73: 1213.86917 | W73: 549.122807
A74: 0398984 | B74: 84 | C74: Faltenbalg | D74: 83.16 | E74: =E73*Tabelle1[[#This Row],[NennØ]]/B73 -> 98.7 | F74: M20x1,5 | G74: G1/8 | H74: =CONCATENATE("LOG ",FIXED(Tabelle1[[#This Row],[NennØ]],1),"-",Tabelle1[[#This Row],[A]],"-",Tabelle1[[#This Row],[B]]) -> LOG 84,0-M20x1,5-G1/8 | I74: keine Messung | J74: keine Messung | K74: =(($K$89-$K$70)/($B$89-$B$70))*Tabelle1[[#This Row],[NennØ]]+$K$89-$B$89*(($K$89-$K$70)/($B$89-$B$70)) -> 0.2805263158 | L74: =0.1*Tabelle1[[#This Row],[F(dmin) berechnete Greifkraft 6 bar]]/9.81/2 -> 6.597946532 | M74: keine Messung | N74: =(($N$89-$N$70)/($B$89-$B$70))*Tabelle1[[#This Row],[NennØ]]+$N$89-$B$89*(($N$89-$N$70)/($B$89-$B$70)) -> 77.43639474 | O74: 6 | P74: 6 | Q74: keine Messung | R74: 0,26/0,26 | S74: -40/80 | T74: =Tabelle1[[#This Row],[NennØ]] -> 84 | U74: 93.33157895 | V74: 1294.51711 | W74: 587.7192982
A75: 0398985 | B75: 85 | C75: Faltenbalg | D75: 84.15 | E75: =E74*Tabelle1[[#This Row],[NennØ]]/B74 -> 99.875 | F75: M20x1,5 | G75: G1/8 | H75: =CONCATENATE("LOG ",FIXED(Tabelle1[[#This Row],[NennØ]],1),"-",Tabelle1[[#This Row],[A]],"-",Tabelle1[[#This Row],[B]]) -> LOG 85,0-M20x1,5-G1/8 | I75: keine Messung | J75: keine Messung | K75: =(($K$89-$K$70)/($B$89-$B$70))*Tabelle1[[#This Row],[NennØ]]+$K$89-$B$89*(($K$89-$K$70)/($B$89-$B$70)) -> 0.2911578947 | L75: =0.1*Tabelle1[[#This Row],[F(dmin) berechnete Greifkraft 6 bar]]/9.81/2 -> 7.009632308 | M75: keine Messung | N75: =(($N$89-$N$70)/($B$89-$B$70))*Tabelle1[[#This Row],[NennØ]]+$N$89-$B$89*(($N$89-$N$70)/($B$89-$B$70)) -> 80.46056842 | O75: 6 | P75: 6 | Q75: keine Messung | R75: 0,27/0,27 | S75: -40/80 | T75: =Tabelle1[[#This Row],[NennØ]] -> 85 | U75: 94.48947368 | V75: 1375.289859 | W75: 626.3157895
A76: 0398986 | B76: 86 | C76: Faltenbalg | D76: 85.14 | E76: =E75*Tabelle1[[#This Row],[NennØ]]/B75 -> 101.05 | F76: M20x1,5 | G76: G1/8 | H76: =CONCATENATE("LOG ",FIXED(Tabelle1[[#This Row],[NennØ]],1),"-",Tabelle1[[#This Row],[A]],"-",Tabelle1[[#This Row],[B]]) -> LOG 86,0-M20x1,5-G1/8 | I76: keine Messung | J76: keine Messung | K76: =(($K$89-$K$70)/($B$89-$B$70))*Tabelle1[[#This Row],[NennØ]]+$K$89-$B$89*(($K$89-$K$70)/($B$89-$B$70)) -> 0.3017894737 | L76: =0.1*Tabelle1[[#This Row],[F(dmin) berechnete Greifkraft 6 bar]]/9.81/2 -> 7.421926695 | M76: keine Messung | N76: =(($N$89-$N$70)/($B$89-$B$70))*Tabelle1[[#This Row],[NennØ]]+$N$89-$B$89*(($N$89-$N$70)/($B$89-$B$70)) -> 83.48474211 | O76: 6 | P76: 6 | Q76: keine Messung | R76: 0,28/0,28 | S76: -40/80 | T76: =Tabelle1[[#This Row],[NennØ]] -> 86 | U76: 95.64736842 | V76: 1456.182018 | W76: 664.9122807
A77: 0398987 | B77: 87 | C77: Faltenbalg | D77: 86.13 | E77: =E76*Tabelle1[[#This Row],[NennØ]]/B76 -> 102.225 | F77: M20x1,5 | G77: G1/8 | H77: =CONCATENATE("LOG ",FIXED(Tabelle1[[#This Row],[NennØ]],1),"-",Tabelle1[[#This Row],[A]],"-",Tabelle1[[#This Row],[B]]) -> LOG 87,0-M20x1,5-G1/8 | I77: keine Messung | J77: keine Messung | K77: =(($K$89-$K$70)/($B$89-$B$70))*Tabelle1[[#This Row],[NennØ]]+$K$89-$B$89*(($K$89-$K$70)/($B$89-$B$70)) -> 0.3124210526 | L77: =0.1*Tabelle1[[#This Row],[F(dmin) berechnete Greifkraft 6 bar]]/9.81/2 -> 7.834803734 | M77: keine Messung | N77: =(($N$89-$N$70)/($B$89-$B$70))*Tabelle1[[#This Row],[NennØ]]+$N$89-$B$89*(($N$89-$N$70)/($B$89-$B$70)) -> 86.50891579 | O77: 6 | P77: 6 | Q77: keine Messung | R77: 0,29/0,29 | S77: -40/80 | T77: =Tabelle1[[#This Row],[NennØ]] -> 87 | U77: 96.80526316 | V77: 1537.188493 | W77: 703.5087719
A78: 0398988 | B78: 88 | C78: Faltenbalg | D78: 87.12 | E78: =E77*Tabelle1[[#This Row],[NennØ]]/B77 -> 103.4 | F78: M20x1,5 | G78: G1/8 | H78: =CONCATENATE("LOG ",FIXED(Tabelle1[[#This Row],[NennØ]],1),"-",Tabelle1[[#This Row],[A]],"-",Tabelle1[[#This Row],[B]]) -> LOG 88,0-M20x1,5-G1/8 | I78: keine Messung | J78: keine Messung | K78: =(($K$89-$K$70)/($B$89-$B$70))*Tabelle1[[#This Row],[NennØ]]+$K$89-$B$89*(($K$89-$K$70)/($B$89-$B$70)) -> 0.3230526316 | L78: =0.1*Tabelle1[[#This Row],[F(dmin) berechnete Greifkraft 6 bar]]/9.81/2 -> 8.24823892 | M78: keine Messung | N78: =(($N$89-$N$70)/($B$89-$B$70))*Tabelle1[[#This Row],[NennØ]]+$N$89-$B$89*(($N$89-$N$70)/($B$89-$B$70)) -> 89.53308947 | O78: 6 | P78: 6 | Q78: keine Messung | R78: 0,30/0,30 | S78: -40/80 | T78: =Tabelle1[[#This Row],[NennØ]] -> 88 | U78: 97.96315789 | V78: 1618.304476 | W78: 742.1052632
A79: 0398989 | B79: 89 | C79: Faltenbalg | D79: 88.11 | E79: =E78*Tabelle1[[#This Row],[NennØ]]/B78 -> 104.575 | F79: M20x1,5 | G79: G1/8 | H79: =CONCATENATE("LOG ",FIXED(Tabelle1[[#This Row],[NennØ]],1),"-",Tabelle1[[#This Row],[A]],"-",Tabelle1[[#This Row],[B]]) -> LOG 89,0-M20x1,5-G1/8 | I79: keine Messung | J79: keine Messung | K79: =(($K$89-$K$70)/($B$89-$B$70))*Tabelle1[[#This Row],[NennØ]]+$K$89-$B$89*(($K$89-$K$70)/($B$89-$B$70)) -> 0.3336842105 | L79: =0.1*Tabelle1[[#This Row],[F(dmin) berechnete Greifkraft 6 bar]]/9.81/2 -> 8.662209105 | M79: keine Messung | N79: =(($N$89-$N$70)/($B$89-$B$70))*Tabelle1[[#This Row],[NennØ]]+$N$89-$B$89*(($N$89-$N$70)/($B$89-$B$70)) -> 92.55726316 | O79: 6 | P79: 6 | Q79: keine Messung | R79: 0,31/0,31 | S79: -40/80 | T79: =Tabelle1[[#This Row],[NennØ]] -> 89 | U79: 99.12105263 | V79: 1699.525426 | W79: 780.7017544
A80: 0398990 | B80: 90 | C80: Faltenbalg | D80: 89.1 | E80: =E79*Tabelle1[[#This Row],[NennØ]]/B79 -> 105.75 | F80: M20x1,5 | G80: G1/8 | H80: =CONCATENATE("LOG ",FIXED(Tabelle1[[#This Row],[NennØ]],1),"-",Tabelle1[[#This Row],[A]],"-",Tabelle1[[#This Row],[B]]) -> LOG 90,0-M20x1,5-G1/8 | I80: keine Messung | J80: keine Messung | K80: =(($K$89-$K$70)/($B$89-$B$70))*Tabelle1[[#This Row],[NennØ]]+$K$89-$B$89*(($K$89-$K$70)/($B$89-$B$70)) -> 0.3443157895 | L80: =0.1*Tabelle1[[#This Row],[F(dmin) berechnete Greifkraft 6 bar]]/9.81/2 -> 9.076692403 | M80: keine Messung | N80: =(($N$89-$N$70)/($B$89-$B$70))*Tabelle1[[#This Row],[NennØ]]+$N$89-$B$89*(($N$89-$N$70)/($B$89-$B$70)) -> 95.58143684 | O80: 6 | P80: 6 | Q80: keine Messung | R80: 0,32/0,32 | S80: -40/80 | T80: =Tabelle1[[#This Row],[NennØ]] -> 90 | U80: 100.2789474 | V80: 1780.847049 | W80: 819.2982456
A81: 0398991 | B81: 91 | C81: Faltenbalg | D81: 90.09 | E81: =E80*Tabelle1[[#This Row],[NennØ]]/B80 -> 106.925 | F81: M20x1,5 | G81: G1/8 | H81: =CONCATENATE("LOG ",FIXED(Tabelle1[[#This Row],[NennØ]],1),"-",Tabelle1[[#This Row],[A]],"-",Tabelle1[[#This Row],[B]]) -> LOG 91,0-M20x1,5-G1/8 | I81: keine Messung | J81: keine Messung | K81: =(($K$89-$K$70)/($B$89-$B$70))*Tabelle1[[#This Row],[NennØ]]+$K$89-$B$89*(($K$89-$K$70)/($B$89-$B$70)) -> 0.3549473684 | L81: =0.1*Tabelle1[[#This Row],[F(dmin) berechnete Greifkraft 6 bar]]/9.81/2 -> 9.491668104 | M81: keine Messung | N81: =(($N$89-$N$70)/($B$89-$B$70))*Tabelle1[[#This Row],[NennØ]]+$N$89-$B$89*(($N$89-$N$70)/($B$89-$B$70)) -> 98.60561053 | O81: 6 | P81: 6 | Q81: keine Messung | R81: 0,34/0,34 | S81: -40/80 | T81: =Tabelle1[[#This Row],[NennØ]] -> 91 | U81: 101.4368421 | V81: 1862.265282 | W81: 857.8947368
A82: 0398992 | B82: 92 | C82: Faltenbalg | D82: 91.08 | E82: =E81*Tabelle1[[#This Row],[NennØ]]/B81 -> 108.1 | F82: M20x1,5 | G82: G1/8 | H82: =CONCATENATE("LOG ",FIXED(Tabelle1[[#This Row],[NennØ]],1),"-",Tabelle1[[#This Row],[A]],"-",Tabelle1[[#This Row],[B]]) -> LOG 92,0-M20x1,5-G1/8 | I82: keine Messung | J82: keine Messung | K82: =(($K$89-$K$70)/($B$89-$B$70))*Tabelle1[[#This Row],[NennØ]]+$K$89-$B$89*(($K$89-$K$70)/($B$89-$B$70)) -> 0.3655789474 | L82: =0.1*Tabelle1[[#This Row],[F(dmin) berechnete Greifkraft 6 bar]]/9.81/2 -> 9.9071166 | M82: keine Messung | N82: =(($N$89-$N$70)/($B$89-$B$70))*Tabelle1[[#This Row],[NennØ]]+$N$89-$B$89*(($N$89-$N$70)/($B$89-$B$70)) -> 101.6297842 | O82: 6 | P82: 6 | Q82: keine Messung | R82: 0,36/0,36 | S82: -40/80 | T82: =Tabelle1[[#This Row],[NennØ]] -> 92 | U82: 102.5947368 | V82: 1943.776277 | W82: 896.4912281
A83: 0398993 | B83: 93 | C83: Faltenbalg | D83: 92.07 | E83: =E82*Tabelle1[[#This Row],[NennØ]]/B82 -> 109.275 | F83: M20x1,5 | G83: G1/8 | H83: =CONCATENATE("LOG ",FIXED(Tabelle1[[#This Row],[NennØ]],1),"-",Tabelle1[[#This Row],[A]],"-",Tabelle1[[#This Row],[B]]) -> LOG 93,0-M20x1,5-G1/8 | I83: keine Messung | J83: keine Messung | K83: =(($K$89-$K$70)/($B$89-$B$70))*Tabelle1[[#This Row],[NennØ]]+$K$89-$B$89*(($K$89-$K$70)/($B$89-$B$70)) -> 0.3762105263 | L83: =0.1*Tabelle1[[#This Row],[F(dmin) berechnete Greifkraft 6 bar]]/9.81/2 -> 10.32301931 | M83: keine Messung | N83: =(($N$89-$N$70)/($B$89-$B$70))*Tabelle1[[#This Row],[NennØ]]+$N$89-$B$89*(($N$89-$N$70)/($B$89-$B$70)) -> 104.6539579 | O83: 6 | P83: 6 | Q83: keine Messung | R83: 0,38/0,38 | S83: -40/80 | T83: =Tabelle1[[#This Row],[NennØ]] -> 93 | U83: 103.7526316 | V83: 2025.376389 | W83: 935.0877193
A84: 0398994 | B84: 94 | C84: Faltenbalg | D84: 93.06 | E84: =E83*Tabelle1[[#This Row],[NennØ]]/B83 -> 110.45 | F84: M20x1,5 | G84: G1/8 | H84: =CONCATENATE("LOG ",FIXED(Tabelle1[[#This Row],[NennØ]],1),"-",Tabelle1[[#This Row],[A]],"-",Tabelle1[[#This Row],[B]]) -> LOG 94,0-M20x1,5-G1/8 | I84: keine Messung | J84: keine Messung | K84: =(($K$89-$K$70)/($B$89-$B$70))*Tabelle1[[#This Row],[NennØ]]+$K$89-$B$89*(($K$89-$K$70)/($B$89-$B$70)) -> 0.3868421053 | L84: =0.1*Tabelle1[[#This Row],[F(dmin) berechnete Greifkraft 6 bar]]/9.81/2 -> 10.73935861 | M84: keine Messung | N84: =(($N$89-$N$70)/($B$89-$B$70))*Tabelle1[[#This Row],[NennØ]]+$N$89-$B$89*(($N$89-$N$70)/($B$89-$B$70)) -> 107.6781316 | O84: 6 | P84: 6 | Q84: keine Messung | R84: 0,39/0,39 | S84: -40/80 | T84: =Tabelle1[[#This Row],[NennØ]] -> 94 | U84: 104.9105263 | V84: 2107.06216 | W84: 973.6842105
A85: 0398995 | B85: 95 | C85: Faltenbalg | D85: 94.05 | E85: =E84*Tabelle1[[#This Row],[NennØ]]/B84 -> 111.625 | F85: M20x1,5 | G85: G1/8 | H85: =CONCATENATE("LOG ",FIXED(Tabelle1[[#This Row],[NennØ]],1),"-",Tabelle1[[#This Row],[A]],"-",Tabelle1[[#This Row],[B]]) -> LOG 95,0-M20x1,5-G1/8 | I85: keine Messung | J85: keine Messung | K85: =(($K$89-$K$70)/($B$89-$B$70))*Tabelle1[[#This Row],[NennØ]]+$K$89-$B$89*(($K$89-$K$70)/($B$89-$B$70)) -> 0.3974736842 | L85: =0.1*Tabelle1[[#This Row],[F(dmin) berechnete Greifkraft 6 bar]]/9.81/2 -> 11.15611779 | M85: keine Messung | N85: =(($N$89-$N$70)/($B$89-$B$70))*Tabelle1[[#This Row],[NennØ]]+$N$89-$B$89*(($N$89-$N$70)/($B$89-$B$70)) -> 110.7023053 | O85: 6 | P85: 6 | Q85: keine Messung | R85: 0,40/0,40 | S85: -40/80 | T85: =Tabelle1[[#This Row],[NennØ]] -> 95 | U85: 106.0684211 | V85: 2188.83031 | W85: 1012.280702
A86: 0398996 | B86: 96 | C86: Faltenbalg | D86: 95.04 | E86: =E85*Tabelle1[[#This Row],[NennØ]]/B85 -> 112.8 | F86: M20x1,5 | G86: G1/8 | H86: =CONCATENATE("LOG ",FIXED(Tabelle1[[#This Row],[NennØ]],1),"-",Tabelle1[[#This Row],[A]],"-",Tabelle1[[#This Row],[B]]) -> LOG 96,0-M20x1,5-G1/8 | I86: keine Messung | J86: keine Messung | K86: =(($K$89-$K$70)/($B$89-$B$70))*Tabelle1[[#This Row],[NennØ]]+$K$89-$B$89*(($K$89-$K$70)/($B$89-$B$70)) -> 0.4081052632 | L86: =0.1*Tabelle1[[#This Row],[F(dmin) berechnete Greifkraft 6 bar]]/9.81/2 -> 11.57328096 | M86: keine Messung | N86: =(($N$89-$N$70)/($B$89-$B$70))*Tabelle1[[#This Row],[NennØ]]+$N$89-$B$89*(($N$89-$N$70)/($B$89-$B$70)) -> 113.7264789 | O86: 6 | P86: 6 | Q86: keine Messung | R86: 0,41/0,41 | S86: -40/80 | T86: =Tabelle1[[#This Row],[NennØ]] -> 96 | U86: 107.2263158 | V86: 2270.677724 | W86: 1050.877193
A87: 0398997 | B87: 97 | C87: Faltenbalg | D87: 96.03 | E87: =E86*Tabelle1[[#This Row],[NennØ]]/B86 -> 113.975 | F87: M20x1,5 | G87: G1/8 | H87: =CONCATENATE("LOG ",FIXED(Tabelle1[[#This Row],[NennØ]],1),"-",Tabelle1[[#This Row],[A]],"-",Tabelle1[[#This Row],[B]]) -> LOG 97,0-M20x1,5-G1/8 | I87: keine Messung | J87: keine Messung | K87: =(($K$89-$K$70)/($B$89-$B$70))*Tabelle1[[#This Row],[NennØ]]+$K$89-$B$89*(($K$89-$K$70)/($B$89-$B$70)) -> 0.4187368421 | L87: =0.1*Tabelle1[[#This Row],[F(dmin) berechnete Greifkraft 6 bar]]/9.81/2 -> 11.99083303 | M87: keine Messung | N87: =(($N$89-$N$70)/($B$89-$B$70))*Tabelle1[[#This Row],[NennØ]]+$N$89-$B$89*(($N$89-$N$70)/($B$89-$B$70)) -> 116.7506526 | O87: 6 | P87: 6 | Q87: keine Messung | R87: 0,42/0,42 | S87: -40/80 | T87: =Tabelle1[[#This Row],[NennØ]] -> 97 | U87: 108.3842105 | V87: 2352.601441 | W87: 1089.473684
A88: 0398998 | B88: 98 | C88: Faltenbalg | D88: 97.02 | E88: =E87*Tabelle1[[#This Row],[NennØ]]/B87 -> 115.15 | F88: M20x1,5 | G88: G1/8 | H88: =CONCATENATE("LOG ",FIXED(Tabelle1[[#This Row],[NennØ]],1),"-",Tabelle1[[#This Row],[A]],"-",Tabelle1[[#This Row],[B]]) -> LOG 98,0-M20x1,5-G1/8 | I88: keine Messung | J88: keine Messung | K88: =(($K$89-$K$70)/($B$89-$B$70))*Tabelle1[[#This Row],[NennØ]]+$K$89-$B$89*(($K$89-$K$70)/($B$89-$B$70)) -> 0.4293684211 | L88: =0.1*Tabelle1[[#This Row],[F(dmin) berechnete Greifkraft 6 bar]]/9.81/2 -> 12.40875968 | M88: keine Messung | N88: =(($N$89-$N$70)/($B$89-$B$70))*Tabelle1[[#This Row],[NennØ]]+$N$89-$B$89*(($N$89-$N$70)/($B$89-$B$70)) -> 119.7748263 | O88: 6 | P88: 6 | Q88: keine Messung | R88: 0,43/0,43 | S88: -40/80 | T88: =Tabelle1[[#This Row],[NennØ]] -> 98 | U88: 109.5421053 | V88: 2434.598648 | W88: 1128.070175
A89: 0398999 | B89: 99 | C89: Faltenbalg | D89: 98.01 | E89: =E88*Tabelle1[[#This Row],[NennØ]]/B88 -> 116.325 | F89: M20x1,5 | G89: G1/8 | H89: =CONCATENATE("LOG ",FIXED(Tabelle1[[#This Row],[NennØ]],1),"-",Tabelle1[[#This Row],[A]],"-",Tabelle1[[#This Row],[B]]) -> LOG 99,0-M20x1,5-G1/8 | I89: 0.42610497 | J89: 0.44 | K89: =Tabelle1[[#This Row],[Eigen- masse gemessen '[kg']]] -> 0.44 | L89: =0.1*Tabelle1[[#This Row],[F(dmin) berechnete Greifkraft 6 bar]]/9.81/2 -> 12.82704723 | M89: 122.799 | N89: =Tabelle1[[#This Row],[Fluidverbrauch pro Doppelhub (Volumen Pro/E) '[cm^3']]] -> 122.799 | O89: 6 | P89: 6 | Q89: 0,44/0,44 | R89: =Tabelle1[[#This Row],[Schließ-/ Öffnungszeit gemessen '[s']]] -> 0,44/0,44 | S89: -40/80 | T89: =Tabelle1[[#This Row],[NennØ]] -> 99 | U89: 110.7 | V89: 2516.666667 | W89: 1166.666667
F92: K:\DATEN\Projekt\Vorlagen\Vorlagen_Katalogdiagramme
B96: Chronik: Wo machen wir die Grenze Schnappscheibe/Faltenbalg
B97: Vorschlag 1 | C97: 25/26 | D97: zu früh
B98: Vorschlag 2 | C98: 29/30 | D98: Schnappscheibe bis 29, Faltenbalg ab 30
B99: Vorschlag 3 | C99: 31/32 | D99: ab 32 Faltenbalg
C102: Anschlag skaliert | D102: Anschlag angepasst | G102: Membran | H102: Beim Skalieren müssen folgende Anpassungen manuell angepasst werden:
A103: Schnappscheibe | B103: 20 | C103: 0.6 | D103: 0.6 | G103: 0.75 | H103: Parameter ID--> Beschriftung
B104: 21 | C104: =C103*B104/B103 -> 0.63 | D104: 0.6 | G104: 0.75 | H104: Wanddicke Membran (2x) --> Ebene "Membrandicke" und "Membran1"
B105: 22 | C105: 0.66 | D105: 0.7 | G105: 0.75 | H105: Endanschlag anpassen
B106: 23 | C106: 0.69 | D106: 0.8 | G106: 0.75 | H106: u.U. Gewinde M14 ersetzen durch Gewinde M16 --> Luftbohrung anpassen, Dichtungsnut anpassen, O-Ring anpassen
B107: 24 | C107: 0.72 | D107: 0.9 | G107: 0.75 | H107: --> Zeichnungen anpassen (inkl. Masse aktualisieren##)
B108: 25 | C108: 0.75 | D108: 1 | G108: 0.75
B109: 26 | C109: 0.78 | D109: 1.1 | G109: 0.75 | H109: wenn Parameter ID nicht möglich ist, Schriftgröße um 0,01 verkleinern, hat funktioniert bei LOG 27, wollte zuerst die 0398927 nicht beschriften
B110: 27 | C110: 0.81 | D110: 1.2 | G110: 0.75
B111: 28 | C111: 0.84 | D111: 1.3 | G111: 0.75
B112: 29 | C112: 0.87 | D112: 1.4 | G112: 0.75
B113: 30 | C113: 0.9 | D113: 1.5 | G113: 0.75
B114: 31 | C114: 0.93 | D114: 1.6 | G114: 0.75
B117: 30 | C117: =$C$127*B117/$B$127 -> 2.25 | G117: 0.75 | H117: Beim Skalieren müssen folgende Anpassungen manuell angepasst werden: | M117: alle LOG 20-40 sind freigegeben FS 24.10.12 Seeberger
B118: 31 | C118: 2.325 | G118: 0.75 | H118: Parameter ID--> Beschriftung | M118: Modelle werden aber erst bei bedarf erstellt
A119: Faltenbalg | B119: 32 | C119: 2.4 | D119: 2.4 | G119: 0.75 | H119: Wanddicke Membran (prüfen) | M119: Erstelldatum dann "neuer" als Freigabedatum
B120: 33 | C120: 2.475 | G120: 0.75 | H120: Spaltmaß zwischen Faltenbalgen prüfen --> min 0,4mm, sonst drm Faltenbalg ändern
B121: 34 | C121: 2.55 | G121: =G122*B121/B122 -> 0.765 | H121: Spaltmaße Anschlag --> seitlich 0,6mm, gegeneinander 0,25 | M121: Info D. Denzer wegen Dummy
B122: 35 | C122: 2.625 | G122: 0.7875 | H122: Luftbohrung Ø 6,2mm (M16x1)
B123: 36 | C123: 2.7 | G123: 0.81 | H123: O-Ringmaß (Ebene) --> 2,9mm
B124: 37 | C124: 2.775 | G124: 0.8325 | H124: Stuetzen --> 0,3mm
B125: 38 | C125: 2.85 | G125: 0.855 | H125: --> Zeichnungen anpassen (inkl. Masse aktualisieren##)
B126: 39 | C126: 2.925 | G126: 0.8775
B127: 40 | C127: 3 | D127: 3 | G127: 0.9
B129: 41 | C129: =$C$127*B129/$B$127 -> 3.075 | G129: =$G$127*B129/$B$127 -> 0.9225 | H129: Beim Skalieren müssen folgende Anpassungen manuell angepasst werden:
B130: 42 | C130: 3.15 | G130: 0.945 | H130: Parameter ID--> Beschriftung
B131: 43 | C131: 3.225 | G131: 0.9675 | H131: Wanddicke Membran (prüfen)
B132: 44 | C132: 3.3 | G132: 0.99 | H132: Spaltmaß zwischen Faltenbalgen prüfen --> min 0,4mm, sonst drm Faltenbalg ändern
B133: 45 | C133: 3.375 | G133: 1.0125 | H133: Spaltmaße Anschlag --> seitlich 0,6mm, gegeneinander 0,25 (ab 50 seitlich 1mm, gegeneinander 0,5)
B134: 46 | C134: 3.45 | G134: 1.035 | H134: Luftbohrung Ø 6,2mm (M16x1)
B135: 47 | C135: 3.525 | G135: 1.0575 | H135: O-Ringmaß (Ebene) --> 2,9mm (ab 32-40 dann skaliert von LOG 40)
B136: 48 | C136: 3.6 | G136: 1.08 | H136: Stuetzen --> 0,3mm
B137: 49 | C137: 3.675 | G137: 1.1025 | H137: --> Zeichnungen anpassen (inkl. Masse aktualisieren##)
B138: 50 | C138: 3.75 | G138: 1.125
B139: 51 | C139: 3.825 | G139: 1.1475
B140: 52 | C140: 3.9 | G140: 1.17
B141: 53 | C141: 3.975 | G141: 1.1925
B142: 54 | C142: 4.05 | G142: 1.215
B143: 55 | C143: 4.125 | G143: 1.2375
B144: 56 | C144: 4.2 | G144: 1.26
B145: 57 | C145: 4.275 | G145: 1.2825
B146: 58 | C146: 4.35 | G146: 1.305
B147: 59 | C147: 4.425 | G147: 1.3275
B148: 60 | C148: 4.5 | G148: 1.35
B149: 61 | C149: 4.575 | G149: 1.3725
B150: 62 | C150: 4.65 | G150: 1.395
B151: 63 | C151: 4.725 | G151: 1.4175
B152: 64 | C152: 4.8 | G152: 1.44
B153: 65 | C153: 4.875 | G153: 1.4625
B154: 66 | C154: 4.95 | G154: 1.485
B155: 67 | C155: 5.025 | G155: 1.5075
B156: 68 | C156: 5.1 | G156: 1.53
B157: 69 | C157: 5.175 | G157: 1.5525
B158: 70 | C158: 5.25 | G158: 1.575
B159: 71 | C159: 5.325 | G159: 1.5975
B160: 72 | C160: 5.4 | G160: 1.62
B161: 73 | C161: 5.475 | G161: =$G$127*B161/$B$127 -> 1.6425
B162: 74 | C162: 5.55 | G162: 1.665
B163: 75 | C163: 5.625 | G163: 1.6875
B164: 76 | C164: 5.7 | G164: 1.71
B165: 77 | C165: 5.775 | G165: 1.7325
B166: 78 | C166: 5.85 | G166: 1.755
B167: 79 | C167: 5.925 | G167: 1.7775
B168: 80 | C168: 6 | G168: 1.8
B169: 81 | C169: 6.075 | G169: 1.8225
B170: 82 | C170: 6.15 | G170: 1.845
B171: 83 | C171: 6.225 | G171: 1.8675
B172: 84 | C172: 6.3 | G172: 1.89
B173: 85 | C173: 6.375 | G173: 1.9125
B174: 86 | C174: 6.45 | G174: 1.935
B175: 87 | C175: 6.525 | G175: 1.9575
B176: 88 | C176: 6.6 | G176: 1.98
B177: 89 | C177: 6.675 | G177: 2.0025
B178: 90 | C178: 6.75 | G178: 2.025
B179: 91 | C179: 6.825 | G179: 2.0475
B180: 92 | C180: 6.9 | G180: 2.07
B181: 93 | C181: 6.975 | G181: 2.0925
B182: 94 | C182: 7.05 | G182: 2.115
B183: 95 | C183: 7.125 | G183: 2.1375
B184: 96 | C184: 7.2 | G184: 2.16
B185: 97 | C185: 7.275 | G185: 2.1825
B186: 98 | C186: 7.35 | G186: 2.205
B187: 99 | C187: 7.425 | G187: 2.2275
